Body Name,Body,Service Division Label,Service Division Code,Organisational Unit,Expenditure Category,Expenditure Code,CIPFA detailed expediture type,CIPFA detailed expediture code,Narrative,Date,Transaction number,Net Amount,Capital and Revenue,Supplier Name,Supplier ID
Chorley Borough Council,http://statistics.data.gov.uk/id/local-authority/30UE,Democratic Represent and  Mgnt,1007,Policy & Governance,Other Fees,40212,Miscellaneous Expenses,5034,Bar fees for June 2017.,28/07/2017,122984,390.00,Revenue,Ace Bars Ltd,54338
Chorley Borough Council,http://statistics.data.gov.uk/id/local-authority/30UE,Democratic Represent and  Mgnt,1007,Early Intervention,External Contractor - Trust or Charity,50008,Private Contractors,5042,Active Nation Management Fee Contract Year 12 Apr17-Mar-18,26/07/2017,121553,"32,969.94",Revenue,Active Nation UK Ltd,17144
Chorley Borough Council,http://statistics.data.gov.uk/id/local-authority/30UE,Democratic Represent and  Mgnt,1007,Early Intervention,External Contractor - Trust or Charity,50008,Private Contractors,5042,Active Nation Management Fee Contract Year 12 Apr17-Mar-18,26/07/2017,122398,"32,804.92",Revenue,Active Nation UK Ltd,17144
Chorley Borough Council,http://statistics.data.gov.uk/id/local-authority/30UE,Unapportionable Central OHeads,1009,Business Development & Growth,General Repairs - Reactive,20004,Repairs Maintenance & Alts,5005,Blanket Order for period May/June 2017,19/07/2017,119731,423.76,Revenue,ADT Fire & Security,16645
Chorley Borough Council,http://statistics.data.gov.uk/id/local-authority/30UE,Unapportionable Central OHeads,1009,Business Development & Growth,General Repairs - Reactive,20004,Repairs Maintenance & Alts,5005,Blanket Order for period May/June 2017,19/07/2017,119732,435.87,Revenue,ADT Fire & Security,16645
Chorley Borough Council,http://statistics.data.gov.uk/id/local-authority/30UE,Homelessness,1075,Business Development & Growth,CCTV Camera Maintenance,40007,"Equipment, Furniture & Materia",5023,Cotswold House CCTV - project,12/07/2017,121028,829.70,Revenue,ADT Fire & Security,16645
Chorley Borough Council,http://statistics.data.gov.uk/id/local-authority/30UE,Unapportionable Central OHeads,1009,Business Development & Growth,Planned Maintenance,20006,Repairs Maintenance & Alts,5005,Blanket order for PPM works from June 2017,12/07/2017,121284,"1,123.30",Revenue,ADT Fire & Security,16645
Chorley Borough Council,http://statistics.data.gov.uk/id/local-authority/30UE,Unapportionable Central OHeads,1009,Business Development & Growth,General Repairs - Reactive,20004,Repairs Maintenance & Alts,5005,Blanket Order for period May/June 2017,12/07/2017,121396,287.68,Revenue,ADT Fire & Security,16645
Chorley Borough Council,http://statistics.data.gov.uk/id/local-authority/30UE,Homelessness,1075,Business Development & Growth,CCTV Camera Maintenance,40007,"Equipment, Furniture & Materia",5023,CCTV works and maintenance programme,19/07/2017,121492,"8,700.08",Revenue,ADT Fire & Security,16645
Chorley Borough Council,http://statistics.data.gov.uk/id/local-authority/30UE,Unapportionable Central OHeads,1009,Business Development & Growth,Planned Maintenance,20006,Repairs Maintenance & Alts,5005,Blanket order for PPM works for 2017.,12/07/2017,122027,309.00,Revenue,ADT Fire & Security,16645
Chorley Borough Council,http://statistics.data.gov.uk/id/local-authority/30UE,Unapportionable Central OHeads,1009,Business Development & Growth,Planned Maintenance,20006,Repairs Maintenance & Alts,5005,Blanket order for PPM works from June 2017,26/07/2017,122763,488.01,Revenue,ADT Fire & Security,16645
Chorley Borough Council,http://statistics.data.gov.uk/id/local-authority/30UE,Unapportionable Central OHeads,1009,Business Development & Growth,Planned Maintenance,20006,Repairs Maintenance & Alts,5005,Blanket order for PPM works from June 2017,26/07/2017,122764,"1,035.36",Revenue,ADT Fire & Security,16645
Chorley Borough Council,http://statistics.data.gov.uk/id/local-authority/30UE,Capital,Capital,Business Development & Growth,Architects Fees,3022,Capital Expenditure,Capital,Architectural services in connection with the preparation and submission of a planning application for the relocated Shopmobility unit at,14/07/2017,122648,"2,800.00",Capital,AEW Architects & Designers Ltd,66520
Chorley Borough Council,http://statistics.data.gov.uk/id/local-authority/30UE,Business Support,1095,Business Development & Growth,Grants To Other Organisations,40127,Grants and Subscriptions,5031,sib grant,21/07/2017,122734,250.00,Revenue,NAME REDACTED,76816
Chorley Borough Council,http://statistics.data.gov.uk/id/local-authority/30UE,Unapportionable Central OHeads,1009,Customer & Digital,Bank Charges,40151,Miscellaneous Expenses,5034,cash transactions,12/07/2017,122490,"1,746.05",Revenue,Allpay Net Ltd,17242
Chorley Borough Council,http://statistics.data.gov.uk/id/local-authority/30UE,Business Support,1095,Business Development & Growth,Grants To Other Organisations,40127,Grants and Subscriptions,5031,sib grant,05/07/2017,122215,250.00,Revenue,NAME REDACTED,76780
Chorley Borough Council,http://statistics.data.gov.uk/id/local-authority/30UE,Business Support,1095,Business Development & Growth,Grants To Other Organisations,40127,Grants and Subscriptions,5031,sib grant,21/07/2017,122844,250.00,Revenue,NAME REDACTED,76822
Chorley Borough Council,http://statistics.data.gov.uk/id/local-authority/30UE,Business Support,1095,Business Development & Growth,Grants To Other Organisations,40127,Grants and Subscriptions,5031,sib grant,05/07/2017,122216,250.00,Revenue,NAME REDACTED,76769
Chorley Borough Council,http://statistics.data.gov.uk/id/local-authority/30UE,Corporate Management,1008,Customer & Digital,Other Contributions,40145,Grants and Subscriptions,5031,ADDRESS REDACTED,28/07/2017,122997,"4,706.00",Revenue,NAME REDACTED,74841
Chorley Borough Council,http://statistics.data.gov.uk/id/local-authority/30UE,Unapportionable Central OHeads,1009,Chief Executive,Miscellaneous Expenses,40200,Miscellaneous Expenses,5034,Events Cancellation Cover - Chorley Flower Show 29th - 30th July 2017,26/07/2017,122875,"2,520.00",Revenue,Aon UK Limited Accounts Division,76559
Chorley Borough Council,http://statistics.data.gov.uk/id/local-authority/30UE,Service Management & Support,1009,Customer & Digital,External Contractor,40198,Miscellaneous Expenses,5034,Supply and install feeder pillar at Central Ave as per your quotation No Q806740,05/07/2017,122038,465.00,Revenue,AP Broome Landscapes,67257
Chorley Borough Council,http://statistics.data.gov.uk/id/local-authority/30UE,Development Control,1091,Policy & Governance,Car Leasing Payment,14100,Direct Employee Expenses,5001,Quote reference: 2910078 Land Rover Discovery Sport 2.0 TD4 180 SE Tech 5dr Auto Station Wagon Automatic Diesel Auto dimming interior,07/07/2017,122282,"5,740.68",Revenue,Arnold Clark Finance Ltd,20685
Chorley Borough Council,http://statistics.data.gov.uk/id/local-authority/30UE,Development Control,1091,Policy & Governance,Car Leasing Payment,14100,Direct Employee Expenses,5001,Car Lease Payment ,07/07/2017,122282,514.59,Revenue,Arnold Clark Finance Ltd,20685
Chorley Borough Council,http://statistics.data.gov.uk/id/local-authority/30UE,Democratic Represent and  Mgnt,1007,Policy & Governance,Lifelong Learning Activities,40194,Miscellaneous Expenses,5034,Provision and design of Children`s Activities for Bare bones Exhibition. Provision of Workshop on 14th August 12noon-4pm,19/07/2017,122653,588.10,Revenue,Art Den,76264
Chorley Borough Council,http://statistics.data.gov.uk/id/local-authority/30UE,Service Management & Support,1009,Customer & Digital,Supplies-Grounds Maintenance,40025,"Equipment, Furniture & Materia",5023,Supply parts as per advice number 188886 dated 06/07/17: JD-AM141457 Spindle x 1 @ 96.62 JD-TCU14356 V Belt x 2 @ 58.20 JD-,19/07/2017,122726,267.05,Revenue,Balmers Garden Machinery,17075
Chorley Borough Council,http://statistics.data.gov.uk/id/local-authority/30UE,Unapportionable Central OHeads,1009,Policy & Governance,Legal Fees,40171,Miscellaneous Expenses,5034,NAME REDACTED - 24/04/17 - HM Courts - 27 Liability Order - NNDR,20/07/2017,122609,81.00,Revenue,Barclaycard Commercial,59848
Chorley Borough Council,http://statistics.data.gov.uk/id/local-authority/30UE,Central Support Services,1009,Policy & Governance,Computer Equipment-Purchase,40098,Communication and Computing,5028,NAME REDACTED - 03/04/17 - Amazon Prime,20/07/2017,122609,7.99,Revenue,Barclaycard Commercial,59848
Chorley Borough Council,http://statistics.data.gov.uk/id/local-authority/30UE,Service Management & Support,1009,Policy & Governance,Supplies-Grounds Maintenance,40025,"Equipment, Furniture & Materia",5023,NAME REDACTED - 13/04/17 - www.stanwaystoragesolutions - Redtronic mega flash traffic director,20/07/2017,122609,175.00,Revenue,Barclaycard Commercial,59848
Chorley Borough Council,http://statistics.data.gov.uk/id/local-authority/30UE,Corporate Management,1008,Policy & Governance,Training Course Fees,17010,Indirect Employee Expenses,5002,NAME REDACTED - 20/04/17 - Trainline - Tickets to London,20/07/2017,122609,330.44,Revenue,Barclaycard Commercial,59848
Chorley Borough Council,http://statistics.data.gov.uk/id/local-authority/30UE,Central Support Services,1009,Policy & Governance,Computer Equipment-Purchase,40098,Communication and Computing,5028,NAME REDACTED - 24/04/17 - Amazon UK Marketplace - Benefit display port to VGA adapter,20/07/2017,122609,19.17,Revenue,Barclaycard Commercial,59848
Chorley Borough Council,http://statistics.data.gov.uk/id/local-authority/30UE,Central Support Services,1009,Policy & Governance,Computer Equipment-Purchase,40098,Communication and Computing,5028,NAME REDACTED - 26/04/17 - www.kitpackaging.co.uk - heavy duty attached lid container,20/07/2017,122609,162.48,Revenue,Barclaycard Commercial,59848
Chorley Borough Council,http://statistics.data.gov.uk/id/local-authority/30UE,Unapportionable Central OHeads,1009,Policy & Governance,Legal Fees,40171,Miscellaneous Expenses,5034,NAME REDACTED - 24/04/17 - HM Courts - 213 liability orders,20/07/2017,122609,639.00,Revenue,Barclaycard Commercial,59848
Chorley Borough Council,http://statistics.data.gov.uk/id/local-authority/30UE,Central Support Services,1009,Policy & Governance,Staff Rail Fares,30032,Public Transport,5019,NAME REDACTED - 11/04/17 - Trainline - Rail fare for NAME REDACTED course in Leeds,20/07/2017,122609,32.44,Revenue,Barclaycard Commercial,59848
Chorley Borough Council,http://statistics.data.gov.uk/id/local-authority/30UE,Central Support Services,1009,Policy & Governance,Training Course Fees,17010,Indirect Employee Expenses,5002,NAME REDACTED - 11/04/17 - EB The Peoples Powerhouse - NAME REDACTED attending event,20/07/2017,122609,70.00,Revenue,Barclaycard Commercial,59848
Chorley Borough Council,http://statistics.data.gov.uk/id/local-authority/30UE,Service Management & Support,1009,Policy & Governance,Vehicle Maintenance,30045,Direct Transport Costs,5016,NAME REDACTED - 30/03/17 - DVLA Vehicle Tax,20/07/2017,122609,167.50,Revenue,Barclaycard Commercial,59848
Chorley Borough Council,http://statistics.data.gov.uk/id/local-authority/30UE,Service Management & Support,1009,Policy & Governance,Vehicle Maintenance,30045,Direct Transport Costs,5016,NAME REDACTED - 30/03/17 - DVLA Vehicle Tax,20/07/2017,122609,167.50,Revenue,Barclaycard Commercial,59848
Chorley Borough Council,http://statistics.data.gov.uk/id/local-authority/30UE,Service Management & Support,1009,Policy & Governance,Vehicle Maintenance,30045,Direct Transport Costs,5016,NAME REDACTED - 11/04/17 - DVLA Vehicle Tax,20/07/2017,122609,212.50,Revenue,Barclaycard Commercial,59848
Chorley Borough Council,http://statistics.data.gov.uk/id/local-authority/30UE,Unapportionable Central OHeads,1009,Policy & Governance,Miscellaneous Expenses,40200,Miscellaneous Expenses,5034,NAME REDACTED - 28/03/17 - Envatomarket - e-plugins for website design,20/07/2017,122609,35.55,Revenue,Barclaycard Commercial,59848
Chorley Borough Council,http://statistics.data.gov.uk/id/local-authority/30UE,Unapportionable Central OHeads,1009,Policy & Governance,Miscellaneous Expenses,40200,Miscellaneous Expenses,5034,NAME REDACTED - 31/03/17 - Facebook - Promoting Astley Hall,20/07/2017,122609,396.56,Revenue,Barclaycard Commercial,59848
Chorley Borough Council,http://statistics.data.gov.uk/id/local-authority/30UE,Unapportionable Central OHeads,1009,Policy & Governance,Miscellaneous Expenses,40200,Miscellaneous Expenses,5034,NAME REDACTED- 31/03/17 - Facebook - Chorley Grand Prix & Whats your Story,20/07/2017,122609,174.70,Revenue,Barclaycard Commercial,59848
Chorley Borough Council,http://statistics.data.gov.uk/id/local-authority/30UE,Unapportionable Central OHeads,1009,Policy & Governance,Legal Fees,40171,Miscellaneous Expenses,5034,NAME REDACTED - 22/05/17 - HM Courts - 30 Liability Order - NNDR,20/07/2017,122610,90.00,Revenue,Barclaycard Commercial,59848
Chorley Borough Council,http://statistics.data.gov.uk/id/local-authority/30UE,Central Support Services,1009,Policy & Governance,Radio Link Licence,40092,Communication and Computing,5028,NAME REDACTED - 09/05/17 - www.ofcom.org.uk - radio licence fee,20/07/2017,122610,100.00,Revenue,Barclaycard Commercial,59848
Chorley Borough Council,http://statistics.data.gov.uk/id/local-authority/30UE,Central Support Services,1009,Policy & Governance,Computer Equipment-Purchase,40098,Communication and Computing,5028,NAME REDACTED - 19/09/17 - Paypal Benchmark - ipad 432 Air Anti theft Vesa 100mm mount tamepr secure case,20/07/2017,122610,25.99,Revenue,Barclaycard Commercial,59848
Chorley Borough Council,http://statistics.data.gov.uk/id/local-authority/30UE,Unapportionable Central OHeads,1009,Policy & Governance,Legal Fees,40171,Miscellaneous Expenses,5034,NAME REDACTED - 24/04/17 - HM Courts - 913 liability orders,20/07/2017,122610,"2,739.00",Revenue,Barclaycard Commercial,59848
Chorley Borough Council,http://statistics.data.gov.uk/id/local-authority/30UE,Corporate Management,1008,Policy & Governance,Tools & Equipment - Purchase,40003,"Equipment, Furniture & Materia",5023,NAME REDACTED - Amazon UK Marketplace - black & decker cordless drill for Astley,20/07/2017,122610,64.99,Revenue,Barclaycard Commercial,59848
Chorley Borough Council,http://statistics.data.gov.uk/id/local-authority/30UE,Central Support Services,1009,Policy & Governance,Computer Equipment-Purchase,40098,Communication and Computing,5028,NAME REDACTED - 30/04/17 - Facebook - Waste Campaigns,20/07/2017,122610,393.55,Revenue,Barclaycard Commercial,59848
Chorley Borough Council,http://statistics.data.gov.uk/id/local-authority/30UE,Central Support Services,1009,Policy & Governance,Computer Equipment-Purchase,40098,Communication and Computing,5028,NAME REDACTED - 30/04/17 - Facebook - Whats Your Story,20/07/2017,122610,29.14,Revenue,Barclaycard Commercial,59848
Chorley Borough Council,http://statistics.data.gov.uk/id/local-authority/30UE,Democratic Represent and  Mgnt,1007,Policy & Governance,Tools & Equipment - Purchase,40003,"Equipment, Furniture & Materia",5023,NAME REDACTED - 02/05/17 - Paypal McMdisplays - 4xA3 Perspex frames for Lancastrian,20/07/2017,122610,88.00,Revenue,Barclaycard Commercial,59848
Chorley Borough Council,http://statistics.data.gov.uk/id/local-authority/30UE,Democratic Represent and  Mgnt,1007,Policy & Governance,Members Hospitality,40122,Expenses,5030,NAME REDACTED - 11/05/17 - Asda Home Shopping - Refreshements for Mayor's Event,20/07/2017,122610,102.35,Revenue,Barclaycard Commercial,59848
Chorley Borough Council,http://statistics.data.gov.uk/id/local-authority/30UE,Unapportionable Central OHeads,1009,Policy & Governance,Mayoral Hospitality,40123,Expenses,5030,NAME REDACTED - 11/05/17 - Asda Home Shopping - Refreshements for Mayor's Event,20/07/2017,122610,176.25,Revenue,Barclaycard Commercial,59848
Chorley Borough Council,http://statistics.data.gov.uk/id/local-authority/30UE,Central Support Services,1009,Policy & Governance,Staff Rail Fares,30032,Public Transport,5019,NAME REDACTED - 22/05/17 - Trainline - Train to Leeds for Conference,20/07/2017,122610,41.77,Revenue,Barclaycard Commercial,59848
Chorley Borough Council,http://statistics.data.gov.uk/id/local-authority/30UE,Elections,1012,Policy & Governance,Tools & Equipment - Purchase,40003,"Equipment, Furniture & Materia",5023,NAME REDACTED - 23/05/17 - www.ukwristbands.com - Neon pink wristbands,20/07/2017,122610,21.25,Revenue,Barclaycard Commercial,59848
Chorley Borough Council,http://statistics.data.gov.uk/id/local-authority/30UE,Corporate Management,1008,Policy & Governance,Bank Charges,40151,Miscellaneous Expenses,5034,BANK CHARGES,20/07/2017,122715,768.88,Revenue,Barclaycard Merchant Services,61601
Chorley Borough Council,http://statistics.data.gov.uk/id/local-authority/30UE,Corporate Management,1008,Policy & Governance,Bank Charges,40151,Miscellaneous Expenses,5034,BANK CHARGES,20/07/2017,122716,475.72,Revenue,Barclaycard Merchant Services,61601
Chorley Borough Council,http://statistics.data.gov.uk/id/local-authority/30UE,Precepts and Collection Fund,Precept,Policy & Governance,Council Tax Income,2002,Precepts & Collection Fund,Precept,Precepts & Collection Fund,20/07/2017,122716,"2,798.00",Revenue,Barclaycard Merchant Services,61601
Chorley Borough Council,http://statistics.data.gov.uk/id/local-authority/30UE,Capital,Capital,Business Development & Growth,Other Contractor,3012,Capital Expenditure,Capital,Painting of 30nr 2m long 4ft high metal bow top fencing on Jubilee Rec Toddler Play Area.  To include undercoating and top coating in dar,14/07/2017,122480,320.00,Capital,Barrie Thompson,19585
Chorley Borough Council,http://statistics.data.gov.uk/id/local-authority/30UE,Service Management & Support,1009,Customer & Digital,External Contractor,40198,Miscellaneous Expenses,5034,Painting of brickwork at Chancery Road underpass,26/07/2017,122830,260.00,Revenue,Barrie Thompson,19585
Chorley Borough Council,http://statistics.data.gov.uk/id/local-authority/30UE,Unapportionable Central OHeads,1009,Policy & Governance,Miscellaneous Expenses,40200,Miscellaneous Expenses,5034,Provision of a presenter and promotional on-air campaign for Picnic in the Park 2017,19/07/2017,122626,"2,000.00",Revenue,Bauer Active Ltd,50574
Chorley Borough Council,http://statistics.data.gov.uk/id/local-authority/30UE,Business Support,1095,Business Development & Growth,Grants To Other Organisations,40127,Grants and Subscriptions,5031,subsidy 5,28/07/2017,122923,908.50,Revenue,Ben Hall - Anytime Fitness Chorley,76500
Chorley Borough Council,http://statistics.data.gov.uk/id/local-authority/30UE,Homelessness,1075,Early Intervention,Laundry,40042,"Clothing, Uniforms and Laundry",5025,"Linen Service at Cotswold Supported Housing, Cotswold Rd, Chorley, PR73HW. This is to cover the period between April 2017 - March 2018",26/07/2017,122397,270.78,Revenue,Berendsen UK Ltd,20799
Chorley Borough Council,http://statistics.data.gov.uk/id/local-authority/30UE,Central Support Services,1009,Early Intervention,Scientific Fees,40075,Services,5027,Supply of services relating to the inspection of Private Water Supplies in Chorley Borough (carried out by NAME REDACTED ,14/07/2017,122619,763.26,Revenue,Blackburn with Darwen Borough Council,21000
Chorley Borough Council,http://statistics.data.gov.uk/id/local-authority/30UE,Private Sector HSG Renewal,1073,Policy & Governance,Miscellaneous Expenses,40200,Miscellaneous Expenses,5034,Cosy Homes in Lancashire Financial Contribution towards deficit as agreed by Lancashire Chief Finance Officers,14/07/2017,122644,"2,415.00",Revenue,Blackpool Borough Council,16518
Chorley Borough Council,http://statistics.data.gov.uk/id/local-authority/30UE,Democratic Represent and  Mgnt,1007,Policy & Governance,Exhibitions,40176,Miscellaneous Expenses,5034,Hire of Bare Bones exhibition - remaining balance outstanding for hire.  3410.00 ex vat,21/07/2017,122815,"3,410.00",Revenue,Blue Tokay,76567
Chorley Borough Council,http://statistics.data.gov.uk/id/local-authority/30UE,Elections,1012,Policy & Governance,Rent/Hire Of Premises,20017,Premises Rents,5007,Rom hire for Polling station for LCC elections 4 May 2017 and UKPE elections on 8 June 2017.,19/07/2017,122727,500.00,Revenue,Bretherton Congregational Church Hall,53724
Chorley Borough Council,http://statistics.data.gov.uk/id/local-authority/30UE,Recreation & Sport,1037,Business Development & Growth,Gas,20014,Energy Costs,5006,buttermere cc,28/07/2017,122947,497.72,Revenue,British Gas Business,22242
Chorley Borough Council,http://statistics.data.gov.uk/id/local-authority/30UE,Economic Development,1096,Policy & Governance,Exhibitions & Special Events,40158,Miscellaneous Expenses,5034,Please supply 100 side sheets as per specification with market logo,19/07/2017,122194,"2,583.33",Revenue,Buyer direct ltd,76637
Chorley Borough Council,http://statistics.data.gov.uk/id/local-authority/30UE,Service Management & Support,1009,Customer & Digital,Supplies-Grounds Maintenance,40025,"Equipment, Furniture & Materia",5023,"50 x 25Kg bags C2 highways fast setting mortar, product code= 02110551",07/07/2017,122343,412.00,Revenue,C & W BERRY LIMITED,18180
Chorley Borough Council,http://statistics.data.gov.uk/id/local-authority/30UE,Central Support Services,1009,Early Intervention,Tools & Equipment - Purchase,40003,"Equipment, Furniture & Materia",5023,Please supply: 20 x Green Drain Dye 200g (05151029) at 8.72 each 10 x Red Drain Dye 200g (05151021) at 9.74 each 5 x Yellow Drain,19/07/2017,122738,361.65,Revenue,C & W BERRY LIMITED,18180
Chorley Borough Council,http://statistics.data.gov.uk/id/local-authority/30UE,Service Management & Support,1009,Customer & Digital,External Contractor,40198,Miscellaneous Expenses,5034,Emptying of interceptor and clearing of drains in Bengal St depot as required for EA licence at agreed price 65per hour 4hrs in total,05/07/2017,121521,325.00,Revenue,C J Lyon,16579
Chorley Borough Council,http://statistics.data.gov.uk/id/local-authority/30UE,Service Management & Support,1009,Customer & Digital,External Contractor,40198,Miscellaneous Expenses,5034,Emptying of interceptor and clearing of drains in Bengal St depot as required for EA licence at agreed price 65per hour 4hrs in total,05/07/2017,122150,325.00,Revenue,C J Lyon,16579
Chorley Borough Council,http://statistics.data.gov.uk/id/local-authority/30UE,Homelessness,1075,Early Intervention,Grants To Other Organisations,40127,Grants and Subscriptions,5031,Provision of Accommodation Finding Service 1st April 2017 - 30th June 2017,14/07/2017,122601,"6,000.00",Revenue,Calico Enterprise,73338
Chorley Borough Council,http://statistics.data.gov.uk/id/local-authority/30UE,Unapportionable Central OHeads,1009,Policy & Governance,Refuse Collection,20037,Cleaning and Domestic Supplies,5012,"Provision of all services to Council sites Fragrances, mats, medical waste, vending machines April 17 to March 18",14/07/2017,122362,"1,834.80",Revenue,Cannon Hygiene Limited,18158
Chorley Borough Council,http://statistics.data.gov.uk/id/local-authority/30UE,Unapportionable Central OHeads,1009,Policy & Governance,Exhibitions & Special Events,40158,Miscellaneous Expenses,5034,"Purchase, delivery and installation of 170m x 1.2m Rola Trac at Chorley Flower Show on Friday 28 July 2017.",19/07/2017,122725,"2,887.00",Revenue,Cap Trac Ltd,76820
Chorley Borough Council,http://statistics.data.gov.uk/id/local-authority/30UE,Tourism,1039,Policy & Governance,Promotional Expenses,40159,Miscellaneous Expenses,5034,prize money,19/07/2017,122737,750.00,Revenue,Chorley & District Gardening Society,21287
Chorley Borough Council,http://statistics.data.gov.uk/id/local-authority/30UE,Corporate Management,1008,Early Intervention,Taxi Testing & Vehicle Safety Report,40234,Services,5027,mot,14/07/2017,122497,822.75,Revenue,Chorley Autocare Ltd,17110
Chorley Borough Council,http://statistics.data.gov.uk/id/local-authority/30UE,Corporate Management,1008,Early Intervention,Taxi Testing & Vehicle Safety Report,40234,Services,5027,taxi test,14/07/2017,122497,131.25,Revenue,Chorley Autocare Ltd,17110
Chorley Borough Council,http://statistics.data.gov.uk/id/local-authority/30UE,Tourism,1039,Policy & Governance,Miscellaneous Expenses,40200,Miscellaneous Expenses,5034,2 x 50 Litre Helium Cylinders,28/07/2017,122952,416.67,Revenue,Chorley Bottled Gas Ltd,19484
Chorley Borough Council,http://statistics.data.gov.uk/id/local-authority/30UE,Corporate Management,1008,Customer & Digital,Other Contributions,40145,Grants and Subscriptions,5031,ADDRESS REDACTED,12/07/2017,122635,"4,316.40",Revenue,Chorley Community Housing,76692
Chorley Borough Council,http://statistics.data.gov.uk/id/local-authority/30UE,Service Management & Support,1009,Customer & Digital,Vehicle Maintenance,30045,Direct Transport Costs,5016,Complete Service and Warranty Repair work on PN15 YWB.,12/07/2017,122432,252.85,Revenue,Chorley Nissan,57435
Chorley Borough Council,http://statistics.data.gov.uk/id/local-authority/30UE,Unapportionable Central OHeads,1009,Policy & Governance,Conferences - Staff,40120,Expenses,5030,2 places on the CIPFA Local Government Accounting Conference Birmingham 4th July 2017,07/07/2017,122440,470.00,Revenue,CIPFA Business Ltd,16247
Chorley Borough Council,http://statistics.data.gov.uk/id/local-authority/30UE,Economic Development,1096,Business Development & Growth,Tools & Equipment - Maintenance,40005,"Equipment, Furniture & Materia",5023,Please supply 15 x 3m gutters as per telephone conversation 312.50 + Vat,05/07/2017,122279,390.00,Revenue,City B Group Ltd,47300
Chorley Borough Council,http://statistics.data.gov.uk/id/local-authority/30UE,Elections,1012,Policy & Governance,Rent/Hire Of Premises,20017,Premises Rents,5007,room hire for polling station UKPE 8 June 2017,07/07/2017,122389,255.00,Revenue,Clayton-Le-Woods Community Centre,18526
Chorley Borough Council,http://statistics.data.gov.uk/id/local-authority/30UE,Capital,Capital,Business Development & Growth,Grants,3002,Capital Expenditure,Capital,"Financial contribution to the improvement and provision of new equipment at Tansley Avenue Play Area, Coppull.",05/07/2017,122081,"40,000.00",Capital,Coppull Parish Council,17025
Chorley Borough Council,http://statistics.data.gov.uk/id/local-authority/30UE,Unapportionable Central OHeads,1009,Business Development & Growth,Planned Maintenance,20006,Repairs Maintenance & Alts,5005,Work required following fixed wire testing at various sites,26/07/2017,122671,"1,328.00",Revenue,Corlett Electrical Eng Co Ltd,16271
Chorley Borough Council,http://statistics.data.gov.uk/id/local-authority/30UE,Unapportionable Central OHeads,1009,Business Development & Growth,Gas,20014,Energy Costs,5006,union street,07/07/2017,122313,539.62,Revenue,Corona Energy Retail 2 Ltd,67249
Chorley Borough Council,http://statistics.data.gov.uk/id/local-authority/30UE,Unapportionable Central OHeads,1009,Business Development & Growth,Gas,20014,Energy Costs,5006,town hall,07/07/2017,122314,442.26,Revenue,Corona Energy Retail 2 Ltd,67249
Chorley Borough Council,http://statistics.data.gov.uk/id/local-authority/30UE,Democratic Represent and  Mgnt,1007,Business Development & Growth,Gas,20014,Energy Costs,5006,asltey hall,07/07/2017,122317,603.74,Revenue,Corona Energy Retail 2 Ltd,67249
Chorley Borough Council,http://statistics.data.gov.uk/id/local-authority/30UE,Homelessness,1075,Business Development & Growth,Gas,20014,Energy Costs,5006,cotswold house,07/07/2017,122323,568.09,Revenue,Corona Energy Retail 2 Ltd,67249
Chorley Borough Council,http://statistics.data.gov.uk/id/local-authority/30UE,Recreation & Sport,1037,Business Development & Growth,Gas,20014,Energy Costs,5006,Buttermere,12/07/2017,122513,708.76,Revenue,Corona Energy Retail 2 Ltd,67249
Chorley Borough Council,http://statistics.data.gov.uk/id/local-authority/30UE,Unapportionable Central OHeads,1009,Business Development & Growth,Gas,20014,Energy Costs,5006,union street,19/07/2017,122798,417.41,Revenue,Corona Energy Retail 2 Ltd,67249
Chorley Borough Council,http://statistics.data.gov.uk/id/local-authority/30UE,Unapportionable Central OHeads,1009,Business Development & Growth,Gas,20014,Energy Costs,5006,town hall,19/07/2017,122799,337.43,Revenue,Corona Energy Retail 2 Ltd,67249
Chorley Borough Council,http://statistics.data.gov.uk/id/local-authority/30UE,Democratic Represent and  Mgnt,1007,Business Development & Growth,Gas,20014,Energy Costs,5006,astey hall,19/07/2017,122802,466.03,Revenue,Corona Energy Retail 2 Ltd,67249
Chorley Borough Council,http://statistics.data.gov.uk/id/local-authority/30UE,Homelessness,1075,Business Development & Growth,Gas,20014,Energy Costs,5006,cotswold house,19/07/2017,122807,501.59,Revenue,Corona Energy Retail 2 Ltd,67249
Chorley Borough Council,http://statistics.data.gov.uk/id/local-authority/30UE,Corporate Management,1008,Customer & Digital,Other Contributions,40145,Grants and Subscriptions,5031,ADDRESS REDACTED,14/07/2017,122634,"3,548.40",Revenue,NAME REDACTED,73997
Chorley Borough Council,http://statistics.data.gov.uk/id/local-authority/30UE,Unapportionable Central OHeads,1009,Policy & Governance,Consultants` Fees,40077,Services,5027,Expenses for PCI DSS review site visit,12/07/2017,122620,316.95,Revenue,Dionach Ltd,22031
Chorley Borough Council,http://statistics.data.gov.uk/id/local-authority/30UE,Economic Development,1096,Business Development & Growth,Fixtures & Fittings - Repair/Mtnce,20028,Fixtures and Fittings,5010,As per quote ref 1518 dated 20.02.17   Works needed following cctv investigations. New Pipe Installation Obtaining all the relevant utility,12/07/2017,122355,498.75,Revenue,Drain Alert Ltd,16961
Chorley Borough Council,http://statistics.data.gov.uk/id/local-authority/30UE,Economic Development,1096,Business Development & Growth,Fixtures & Fittings - Repair/Mtnce,20028,Fixtures and Fittings,5010,"Section 3: MH2 to Branch A: Install additional epoxy Patch Repair on the same section 100mm diameter at 6.15 metres, 12.41 metres, and",12/07/2017,122355,"1,595.00",Revenue,Drain Alert Ltd,16961
Chorley Borough Council,http://statistics.data.gov.uk/id/local-authority/30UE,Economic Development,1096,Business Development & Growth,Fixtures & Fittings - Repair/Mtnce,20028,Fixtures and Fittings,5010,Section 5: MH2 to MH3: Installation of 100mm dia. Localised epoxy patch repair at 12.65 metres,12/07/2017,122355,498.75,Revenue,Drain Alert Ltd,16961
Chorley Borough Council,http://statistics.data.gov.uk/id/local-authority/30UE,Economic Development,1096,Business Development & Growth,Fixtures & Fittings - Repair/Mtnce,20028,Fixtures and Fittings,5010,Section 5: MH2 to MH3: Lateral Cutting to reopen junctions following lining.100 mm,12/07/2017,122355,157.50,Revenue,Drain Alert Ltd,16961
Chorley Borough Council,http://statistics.data.gov.uk/id/local-authority/30UE,Economic Development,1096,Business Development & Growth,Fixtures & Fittings - Repair/Mtnce,20028,Fixtures and Fittings,5010,Section 10: MH5 to Branch B: Installation of 100mm dia. localised epoxy patch repair at 0.59 metres,12/07/2017,122355,498.75,Revenue,Drain Alert Ltd,16961
Chorley Borough Council,http://statistics.data.gov.uk/id/local-authority/30UE,Economic Development,1096,Business Development & Growth,Fixtures & Fittings - Repair/Mtnce,20028,Fixtures and Fittings,5010,"Section 10: MH5 to Branch B: Mobilisation, administration and site set up.",12/07/2017,122355,495.00,Revenue,Drain Alert Ltd,16961
Chorley Borough Council,http://statistics.data.gov.uk/id/local-authority/30UE,Economic Development,1096,Business Development & Growth,Fixtures & Fittings - Repair/Mtnce,20028,Fixtures and Fittings,5010,Section 10: MH5 to Branch B: Excavate by hand to a depth of up to approx depth of 0.9 metres in block paved area. Remove all defective,12/07/2017,122355,499.50,Revenue,Drain Alert Ltd,16961
Chorley Borough Council,http://statistics.data.gov.uk/id/local-authority/30UE,Economic Development,1096,Business Development & Growth,Fixtures & Fittings - Repair/Mtnce,20028,Fixtures and Fittings,5010,"Section 10: MH5 to Branch B: Cost for removal of excavated material and backfill with type2 compacted in layers, labour and skips",12/07/2017,122355,535.50,Revenue,Drain Alert Ltd,16961
Chorley Borough Council,http://statistics.data.gov.uk/id/local-authority/30UE,Economic Development,1096,Business Development & Growth,Fixtures & Fittings - Repair/Mtnce,20028,Fixtures and Fittings,5010,Section 10: MH5 to Branch B: Fully reinstate on completion,12/07/2017,122355,64.99,Revenue,Drain Alert Ltd,16961
Chorley Borough Council,http://statistics.data.gov.uk/id/local-authority/30UE,Economic Development,1096,Business Development & Growth,Fixtures & Fittings - Repair/Mtnce,20028,Fixtures and Fittings,5010,Section 23: MH9 to Branch B: Installation of 100mm dia. localised epoxy patch repair at 1.65 metres,12/07/2017,122355,498.75,Revenue,Drain Alert Ltd,16961
Chorley Borough Council,http://statistics.data.gov.uk/id/local-authority/30UE,Economic Development,1096,Business Development & Growth,Fixtures & Fittings - Repair/Mtnce,20028,Fixtures and Fittings,5010,Section 36: MH12 to Branch A: Installation of 100mm dia. localised epoxy patch repair at 7.92 metres,12/07/2017,122355,498.75,Revenue,Drain Alert Ltd,16961
Chorley Borough Council,http://statistics.data.gov.uk/id/local-authority/30UE,Economic Development,1096,Business Development & Growth,Fixtures & Fittings - Repair/Mtnce,20028,Fixtures and Fittings,5010,"Section 36: MH12 to branch A: Mobilisation, administration and site set up.",12/07/2017,122355,495.00,Revenue,Drain Alert Ltd,16961
Chorley Borough Council,http://statistics.data.gov.uk/id/local-authority/30UE,Economic Development,1096,Business Development & Growth,Fixtures & Fittings - Repair/Mtnce,20028,Fixtures and Fittings,5010,"Section 36: MH12 to branch A: Prior to repair, remove the internal backdrop, carry out the repair then replace on completion. Excavate by ",12/07/2017,122355,647.00,Revenue,Drain Alert Ltd,16961
Chorley Borough Council,http://statistics.data.gov.uk/id/local-authority/30UE,Economic Development,1096,Business Development & Growth,Fixtures & Fittings - Repair/Mtnce,20028,Fixtures and Fittings,5010,"Section 36: MH12 to branch A: Cost for removal of excavated material and backfill with type2 compacted in layers, labour and skips",12/07/2017,122355,248.50,Revenue,Drain Alert Ltd,16961
Chorley Borough Council,http://statistics.data.gov.uk/id/local-authority/30UE,Economic Development,1096,Business Development & Growth,Fixtures & Fittings - Repair/Mtnce,20028,Fixtures and Fittings,5010,Section 36: MH12 to branch A: Reinstate on completion,12/07/2017,122355,112.52,Revenue,Drain Alert Ltd,16961
Chorley Borough Council,http://statistics.data.gov.uk/id/local-authority/30UE,Central Support Services,1009,Customer & Digital,Mobile Voice and Data,40086,Communication and Computing,5028,Jun-17,21/07/2017,122498,479.36,Revenue,EE - Orange,16486
Chorley Borough Council,http://statistics.data.gov.uk/id/local-authority/30UE,Central Support Services,1009,Customer & Digital,Mobile Voice and Data,40086,Communication and Computing,5028,Jun-17,05/07/2017,122364,"2,099.23",Revenue,EE LIMITED,63366
Chorley Borough Council,http://statistics.data.gov.uk/id/local-authority/30UE,Business Support,1095,Business Development & Growth,Grants To Other Organisations,40127,Grants and Subscriptions,5031,subsidy 3,21/07/2017,122840,"2,181.00",Revenue,Eire Ltd,76546
Chorley Borough Council,http://statistics.data.gov.uk/id/local-authority/30UE,Unapportionable Central OHeads,1009,Business Development & Growth,Planned Maintenance,20006,Repairs Maintenance & Alts,5005,Blanket PPM order from July 17,07/07/2017,122301,285.00,Revenue,Ellesmere Engineering Co Ltd,17520
Chorley Borough Council,http://statistics.data.gov.uk/id/local-authority/30UE,Unapportionable Central OHeads,1009,Business Development & Growth,Planned Maintenance,20006,Repairs Maintenance & Alts,5005,Blanket PPM order from July 17,26/07/2017,122676,285.00,Revenue,Ellesmere Engineering Co Ltd,17520
Chorley Borough Council,http://statistics.data.gov.uk/id/local-authority/30UE,Unapportionable Central OHeads,1009,Business Development & Growth,Planned Maintenance,20006,Repairs Maintenance & Alts,5005,Blanket PPM order from July 17,26/07/2017,122681,375.00,Revenue,Ellesmere Engineering Co Ltd,17520
Chorley Borough Council,http://statistics.data.gov.uk/id/local-authority/30UE,Capital,Capital,Business Development & Growth,Main Contractor,3007,Capital Expenditure,Capital,Primrose Gardens - Pre-construction Services PRE-3,12/07/2017,122267,"107,633.75",Capital,Eric Wright Construction Ltd,76464
Chorley Borough Council,http://statistics.data.gov.uk/id/local-authority/30UE,Capital,Capital,Customer & Digital,Main Contractor,3007,Capital Expenditure,Capital,Delivery of the pre-construction service agreement in relation to the Market Walk Extension,14/07/2017,122488,"658,341.52",Capital,Eric Wright Construction Ltd,76464
Chorley Borough Council,http://statistics.data.gov.uk/id/local-authority/30UE,Democratic Represent and  Mgnt,1007,Customer & Digital,Supplies-Grounds Maintenance,40025,"Equipment, Furniture & Materia",5023,Various shrubs for the Hartwood roundabout,07/07/2017,122261,"3,675.00",Revenue,Everglades Nurseries Ltd,20202
Chorley Borough Council,http://statistics.data.gov.uk/id/local-authority/30UE,Unapportionable Central OHeads,1009,Policy & Governance,Legal Fees,40171,Miscellaneous Expenses,5034,Professional fees in connection to Deed of Variation and Deed of Covenant on Southport Road,07/07/2017,122370,"3,500.00",Revenue,Eversheds Sutherland (International) LLP,17709
Chorley Borough Council,http://statistics.data.gov.uk/id/local-authority/30UE,Unapportionable Central OHeads,1009,Policy & Governance,Legal Fees,40171,Miscellaneous Expenses,5034,Cadent Gas fees in connection with Deed of Variation,07/07/2017,122431,840.00,Revenue,Eversheds Sutherland (International) LLP,17709
Chorley Borough Council,http://statistics.data.gov.uk/id/local-authority/30UE,Unapportionable Central OHeads,1009,Policy & Governance,Corp Training Organisational Development,17006,Indirect Employee Expenses,5002,Executive Coaching Sessions x 2 two hour sessions,14/07/2017,122445,635.10,Revenue,Evolving Edge Ltd,76455
Chorley Borough Council,http://statistics.data.gov.uk/id/local-authority/30UE,Unapportionable Central OHeads,1009,Customer & Digital,Debtor Tracing Service,40216,Services,5027,Consumer Business - searches,12/07/2017,122544,"2,595.00",Revenue,Experian Limited,17797
Chorley Borough Council,http://statistics.data.gov.uk/id/local-authority/30UE,Service Management & Support,1009,Customer & Digital,Supplies - Workshop,40246,"Equipment, Furniture & Materia",5023,Part supplied as listed in Invoice 121685,05/07/2017,122268,341.81,Revenue,F R Sharrock Ltd,18091
Chorley Borough Council,http://statistics.data.gov.uk/id/local-authority/30UE,Service Management & Support,1009,Customer & Digital,Hire Of Vehicles and Plant,30028,Contrct Hire & Operating Lease,5018,extending the hire of tractor and flail - as per agreement with NAME REDACTED - until 30/06/2017,05/07/2017,122294,"1,490.76",Revenue,F R Sharrock Ltd,18091
Chorley Borough Council,http://statistics.data.gov.uk/id/local-authority/30UE,Service Management & Support,1009,Customer & Digital,Vehicle Maintenance,30045,Direct Transport Costs,5016,Repairs to John Deere 3036E front axel as listed in Pro Forma No. 199051,26/07/2017,122745,541.50,Revenue,F R Sharrock Ltd,18091
Chorley Borough Council,http://statistics.data.gov.uk/id/local-authority/30UE,Corporate Management,1008,Customer & Digital,Tools & Equipment - Maintenance,40005,"Equipment, Furniture & Materia",5023,1100L bin refurbishment (replacement lids) at Buckshaw sites,26/07/2017,122883,"1,380.00",Revenue,Fairport Containers Ltd,17735
Chorley Borough Council,http://statistics.data.gov.uk/id/local-authority/30UE,Private Sector HSG Renewal,1073,Early Intervention,Miscellaneous Expenses,40200,Miscellaneous Expenses,5034,ADDRESS REDACTED,26/07/2017,122845,"2,450.00",Revenue,Firefly Energi Ltd,69925
Chorley Borough Council,http://statistics.data.gov.uk/id/local-authority/30UE,Service Management & Support,1009,Customer & Digital,Vehicle Maintenance,30045,Direct Transport Costs,5016,"2 Axled vehicle roadworthiness inspection, as per invoice number 8293520, on Skip Wagon PL16 LVK",26/07/2017,122847,122.40,Revenue,Freight Transport Assoc Ltd,16333
Chorley Borough Council,http://statistics.data.gov.uk/id/local-authority/30UE,Service Management & Support,1009,Customer & Digital,Vehicle Maintenance,30045,Direct Transport Costs,5016,"2 Axled vehicle roadworthiness inspection, as per invoice number 8293520, on Bin Wagon PN66 RCU",26/07/2017,122847,122.40,Revenue,Freight Transport Assoc Ltd,16333
Chorley Borough Council,http://statistics.data.gov.uk/id/local-authority/30UE,Service Management & Support,1009,Customer & Digital,Vehicle Maintenance,30045,Direct Transport Costs,5016,"2 axled vehicle road worthiness inspection, as per invoice number 8293520, on large mechanical sweeper RV14DVB",26/07/2017,122847,122.40,Revenue,Freight Transport Assoc Ltd,16333
Chorley Borough Council,http://statistics.data.gov.uk/id/local-authority/30UE,Capital,Capital,Policy & Governance,Main Contractor,3007,Capital Expenditure,Capital,Providing a schedule of work for completing the Morning Room repairs and rebuilding the fire surround Completing the Townley-Parker work ,26/07/2017,122854,"3,500.00",Capital,Geoff W Maybank,64389
Chorley Borough Council,http://statistics.data.gov.uk/id/local-authority/30UE,Corporate Management,1008,Customer & Digital,Other Contributions,40145,Grants and Subscriptions,5031,ADDRESS REDACTED,28/07/2017,122998,"1,166.00",Revenue,NAME REDACTED,73739
Chorley Borough Council,http://statistics.data.gov.uk/id/local-authority/30UE,Central Support Services,1009,Early Intervention,Vandalism Repairs,20005,Repairs Maintenance & Alts,5005,Contract for Graffiti removal 2017,05/07/2017,122004,290.00,Revenue,Graffiti Away,76316
Chorley Borough Council,http://statistics.data.gov.uk/id/local-authority/30UE,Business Support,1095,Business Development & Growth,Grants To Other Organisations,40127,Grants and Subscriptions,5031,sib grant,21/07/2017,122631,250.00,Revenue,NAME REDACTED,76795
Chorley Borough Council,http://statistics.data.gov.uk/id/local-authority/30UE,Corporate Management,1008,Policy & Governance,External Audit,40064,Services,5027,2016/17 External Audit - Main Audit fee,12/07/2017,121925,"11,314.00",Revenue,Grant Thornton UK LLP,57322
Chorley Borough Council,http://statistics.data.gov.uk/id/local-authority/30UE,Other Short Term Creditors,,Policy & Governance,General Balances,100,Balance Sheet,Balance,CLASS 1A NICS 16/17,12/07/2017,122602,"35,475.98",Revenue,H M Revenue & Customs Only,21264
Chorley Borough Council,http://statistics.data.gov.uk/id/local-authority/30UE,Capital,Capital,Business Development & Growth,Main Contractor,3007,Capital Expenditure,Capital,"Design and Build of Jubilee Recreation Ground Toddler Play Area, Adlington as per design drawings and contract documents. To be complet",19/07/2017,122532,"33,899.56",Capital,Hags Smp LTD,22492
Chorley Borough Council,http://statistics.data.gov.uk/id/local-authority/30UE,Economic Development,1096,Business Development & Growth,Miscellaneous Expenses,40200,Miscellaneous Expenses,5034,"1 BUNT Heavy Duty PVC Bunting Red / White / Blue / Yellow / Green / Orange  12"" x 8"" (30cm x 20cm) 10m Lengths 40 Each 9.25 370.00 2",26/07/2017,122868,"1,466.50",Revenue,Hampshire Flag Company,22296
Chorley Borough Council,http://statistics.data.gov.uk/id/local-authority/30UE,Business Support,1095,Business Development & Growth,Grants To Other Organisations,40127,Grants and Subscriptions,5031,sib grant,21/07/2017,122732,250.00,Revenue,NAME REDACTED,76817
Chorley Borough Council,http://statistics.data.gov.uk/id/local-authority/30UE,Other Short Term Debtors,,Policy & Governance,General Balances,100,Balance Sheet,Balance,vat to hmrc,05/07/2017,122366,"363,010.87",Revenue,HM Customs And Excise,17569
Chorley Borough Council,http://statistics.data.gov.uk/id/local-authority/30UE,Other Short Term Creditors,,Policy & Governance,General Balances,100,Balance Sheet,Balance,ELECTION INCOME TAX,12/07/2017,122611,"10,827.60",Revenue,HM Revenue and Customs 065PP001020791701,65597
Chorley Borough Council,http://statistics.data.gov.uk/id/local-authority/30UE,Other Short Term Creditors,,Policy & Governance,General Balances,100,Balance Sheet,Balance,INCOME TAX ELECTION,12/07/2017,122612,"9,875.60",Revenue,HM Revenue and Customs 065PP001020791701,65597
Chorley Borough Council,http://statistics.data.gov.uk/id/local-authority/30UE,Corporate Management,1008,Customer & Digital,Other Contributions,40145,Grants and Subscriptions,5031,ADDRESS REDACTED,21/07/2017,122841,"4,706.00",Revenue,NAME REDACTED,74771
Chorley Borough Council,http://statistics.data.gov.uk/id/local-authority/30UE,Business Support,1095,Business Development & Growth,Professional Fees,40063,Services,5027,The Project Management Support will provide the inputs required to assist with the following tasks: 1. Programme management of the,19/07/2017,122741,"3,328.00",Revenue,Identity Consult Ltd,76426
Chorley Borough Council,http://statistics.data.gov.uk/id/local-authority/30UE,Community Development,1097,Business Development & Growth,Rent/Hire Of Premises,20017,Premises Rents,5007,rent for ADDRESS REDACTED,07/07/2017,122022,"7,218.75",Revenue,J R Keys,17124
Chorley Borough Council,http://statistics.data.gov.uk/id/local-authority/30UE,Business Support,1095,Business Development & Growth,Refuse Collection,20037,Cleaning and Domestic Supplies,5012,Waste Compactor Rental Services @ 270.0 per month April 17 - March 18,12/07/2017,122357,270.00,Revenue,J&H Rentals Limited,70699
Chorley Borough Council,http://statistics.data.gov.uk/id/local-authority/30UE,Tourism,1039,Policy & Governance,Publicity - Advertising,40157,Miscellaneous Expenses,5034,Full page adverts for the flower show in  The Directory The Guide The Handbook,05/07/2017,122344,550.00,Revenue,Jam Design and Publications Ltd,76061
Chorley Borough Council,http://statistics.data.gov.uk/id/local-authority/30UE,Unapportionable Central OHeads,1009,Business Development & Growth,General Repairs - Reactive,20004,Repairs Maintenance & Alts,5005,Replace boiler and flush system at Astley,12/07/2017,122026,"2,826.65",Revenue,James Mercer,20194
Chorley Borough Council,http://statistics.data.gov.uk/id/local-authority/30UE,Corporate Management,1008,Customer & Digital,Other Contributions,40145,Grants and Subscriptions,5031,ADDRESS REDACTED,28/07/2017,122999,"1,333.20",Revenue,NAME REDACTED,73914
Chorley Borough Council,http://statistics.data.gov.uk/id/local-authority/30UE,Corporate Management,1008,Customer & Digital,Other Contributions,40145,Grants and Subscriptions,5031,ADDRESS REDACTED,12/07/2017,122633,"4,629.60",Revenue,NAME REDACTED,73915
Chorley Borough Council,http://statistics.data.gov.uk/id/local-authority/30UE,Service Management & Support,1009,Customer & Digital,Vehicles and Plant Operating Lease,30029,Contrct Hire & Operating Lease,5018,Lease of Wessex RMX-560 Tri-deck mower from 26th August 2017-25th August 2018,28/07/2017,122957,"3,504.89",Revenue,Jcb Finance Ltd,17684
Chorley Borough Council,http://statistics.data.gov.uk/id/local-authority/30UE,Service Management & Support,1009,Customer & Digital,Vehicles and Plant Operating Lease,30029,Contrct Hire & Operating Lease,5018,Lease of Ransome Parkway mower YX14 FCL from 26th August 2017-25th August 2018,28/07/2017,122957,"4,254.38",Revenue,Jcb Finance Ltd,17684
Chorley Borough Council,http://statistics.data.gov.uk/id/local-authority/30UE,Service Management & Support,1009,Customer & Digital,Vehicles and Plant Operating Lease,30029,Contrct Hire & Operating Lease,5018,Lease of John Deere Front mower PN14 VMZ from 26th August 2017-25th August 2018,28/07/2017,122957,"3,038.84",Revenue,Jcb Finance Ltd,17684
Chorley Borough Council,http://statistics.data.gov.uk/id/local-authority/30UE,Service Management & Support,1009,Customer & Digital,Vehicles and Plant Operating Lease,30029,Contrct Hire & Operating Lease,5018,Lease of John Deere Front mower PN14 VNA from 26th August 2017-25th August 2018,28/07/2017,122957,"3,038.84",Revenue,Jcb Finance Ltd,17684
Chorley Borough Council,http://statistics.data.gov.uk/id/local-authority/30UE,Service Management & Support,1009,Customer & Digital,Vehicles and Plant Operating Lease,30029,Contrct Hire & Operating Lease,5018,Lease of John Deere Front mower PN14 VNF from 26th August 2017-25th August 2018,28/07/2017,122957,"3,038.84",Revenue,Jcb Finance Ltd,17684
Chorley Borough Council,http://statistics.data.gov.uk/id/local-authority/30UE,Capital,Capital,Customer & Digital,Equipment,3014,Capital Expenditure,Capital,"Distribution of brown and grey bins w/c 22 May, 2 crews for 5 days @450 per day per crew",19/07/2017,122089,"4,500.00",Capital,Jett Trade,76735
Chorley Borough Council,http://statistics.data.gov.uk/id/local-authority/30UE,Capital,Capital,Customer & Digital,Equipment,3014,Capital Expenditure,Capital,Distribution of grey and brown bins w/c 29th May 1 crew @ 450 per day for 4 days,19/07/2017,122089,"1,800.00",Capital,Jett Trade,76735
Chorley Borough Council,http://statistics.data.gov.uk/id/local-authority/30UE,Capital,Capital,Customer & Digital,Equipment,3014,Capital Expenditure,Capital,Distribution of grey and brown bins w/c 5th June 1 crew at 450 per day for 5 days,19/07/2017,122089,"2,250.00",Capital,Jett Trade,76735
Chorley Borough Council,http://statistics.data.gov.uk/id/local-authority/30UE,Capital,Capital,Customer & Digital,Equipment,3014,Capital Expenditure,Capital,Removal and delivery of brown bins w/c 17 April for 4 days,19/07/2017,122090,"1,800.00",Capital,Jett Trade,76735
Chorley Borough Council,http://statistics.data.gov.uk/id/local-authority/30UE,Capital,Capital,Customer & Digital,Equipment,3014,Capital Expenditure,Capital,Removal and delivery of brown bins w/c 1 May for 5 days,19/07/2017,122090,"2,250.00",Capital,Jett Trade,76735
Chorley Borough Council,http://statistics.data.gov.uk/id/local-authority/30UE,Capital,Capital,Customer & Digital,Equipment,3014,Capital Expenditure,Capital,Removal and collection of brown bins w/c 15 May for 5 days,19/07/2017,122090,"2,250.00",Capital,Jett Trade,76735
Chorley Borough Council,http://statistics.data.gov.uk/id/local-authority/30UE,Capital,Capital,Customer & Digital,Equipment,3014,Capital Expenditure,Capital,Deliver of phase 5 grey bins over weekend of 20/21 May,19/07/2017,122090,"1,350.00",Capital,Jett Trade,76735
Chorley Borough Council,http://statistics.data.gov.uk/id/local-authority/30UE,Business Support,1095,Business Development & Growth,Grants To Other Organisations,40127,Grants and Subscriptions,5031,sib grant,21/07/2017,122630,250.00,Revenue,NAME REDACTED,76801
Chorley Borough Council,http://statistics.data.gov.uk/id/local-authority/30UE,Service Management & Support,1009,Customer & Digital,Supplies-Grounds Maintenance,40025,"Equipment, Furniture & Materia",5023,2 sheets of 2.4m x 1.2m x 18mm external plywood,07/07/2017,121743,50.84,Revenue,John H Mayor & Sons Ltd,16635
Chorley Borough Council,http://statistics.data.gov.uk/id/local-authority/30UE,Service Management & Support,1009,Customer & Digital,Supplies-Grounds Maintenance,40025,"Equipment, Furniture & Materia",5023,10 of 5lt tubs of less mess cuprinol  ( 3 black and 7 rich oak ),07/07/2017,121743,65.11,Revenue,John H Mayor & Sons Ltd,16635
Chorley Borough Council,http://statistics.data.gov.uk/id/local-authority/30UE,Service Management & Support,1009,Customer & Digital,Supplies-Grounds Maintenance,40025,"Equipment, Furniture & Materia",5023,20 @ 4.2m x 150mm x 50mm rough sawn timber,07/07/2017,121743,176.40,Revenue,John H Mayor & Sons Ltd,16635
Chorley Borough Council,http://statistics.data.gov.uk/id/local-authority/30UE,Service Management & Support,1009,Customer & Digital,Supplies-Grounds Maintenance,40025,"Equipment, Furniture & Materia",5023,20 @ 1.8m x 150mm x 75mm green timber,12/07/2017,122429,113.40,Revenue,John H Mayor & Sons Ltd,16635
Chorley Borough Council,http://statistics.data.gov.uk/id/local-authority/30UE,Service Management & Support,1009,Customer & Digital,Supplies-Grounds Maintenance,40025,"Equipment, Furniture & Materia",5023,40 @ 3.6m x 100mm x 38mm green timber,12/07/2017,122429,153.20,Revenue,John H Mayor & Sons Ltd,16635
Chorley Borough Council,http://statistics.data.gov.uk/id/local-authority/30UE,Democratic Represent and  Mgnt,1007,Customer & Digital,Playground Equipment,40008,"Equipment, Furniture & Materia",5023,20 @ 1.8m x 150mm x 75mm green timber,12/07/2017,122430,113.40,Revenue,John H Mayor & Sons Ltd,16635
Chorley Borough Council,http://statistics.data.gov.uk/id/local-authority/30UE,Democratic Represent and  Mgnt,1007,Customer & Digital,Playground Equipment,40008,"Equipment, Furniture & Materia",5023,40 @ 3.6m x 100mm x 38mm green timber,12/07/2017,122430,153.20,Revenue,John H Mayor & Sons Ltd,16635
Chorley Borough Council,http://statistics.data.gov.uk/id/local-authority/30UE,Capital,Capital,Business Development & Growth,Main Contractor,3007,Capital Expenditure,Capital,Construction of extended and reconfigured car park at Yarrow Valley Country Park in accordance with tender submitted in January 2017.,26/07/2017,122728,"89,432.88",Capital,John Wade Groundworks Ltd,76676
Chorley Borough Council,http://statistics.data.gov.uk/id/local-authority/30UE,Development Control,1091,Customer & Digital,Statutory Notices,40160,Miscellaneous Expenses,5034,Planning Public Notices to appear in the Chorley Guardian April 2017 to March 2018,12/07/2017,122447,393.30,Revenue,Johnston Publishing Ltd,20072
Chorley Borough Council,http://statistics.data.gov.uk/id/local-authority/30UE,Elections,1012,Policy & Governance,Statutory Notices,40160,Miscellaneous Expenses,5034,Notice of election - to be published in Lancashire Evening Post on Saturday 6 May 2017,12/07/2017,122618,"1,006.65",Revenue,Johnston Publishing Ltd,20072
Chorley Borough Council,http://statistics.data.gov.uk/id/local-authority/30UE,Development Control,1091,Customer & Digital,Statutory Notices,40160,Miscellaneous Expenses,5034,Planning Public Notices to appear in the Chorley Guardian April 2017 to March 2018,26/07/2017,122629,471.96,Revenue,Johnston Publishing Ltd,20072
Chorley Borough Council,http://statistics.data.gov.uk/id/local-authority/30UE,Service Management & Support,1009,Business Development & Growth,Entry Fees,40237,Miscellaneous Expenses,5034,Green Flag Application Award fee for Yarrow Valley Country Park,14/07/2017,122639,365.00,Revenue,Keep Britain Tidy,22196
Chorley Borough Council,http://statistics.data.gov.uk/id/local-authority/30UE,Service Management & Support,1009,Business Development & Growth,Entry Fees,40237,Miscellaneous Expenses,5034,Green Flag Application Award Fee for Astley Park,14/07/2017,122640,365.00,Revenue,Keep Britain Tidy,22196
Chorley Borough Council,http://statistics.data.gov.uk/id/local-authority/30UE,Service Management & Support,1009,Business Development & Growth,Entry Fees,40237,Miscellaneous Expenses,5034,Green Flag Application Award Fee for Coronation Recreation Ground,14/07/2017,122641,314.00,Revenue,Keep Britain Tidy,22196
Chorley Borough Council,http://statistics.data.gov.uk/id/local-authority/30UE,Service Management & Support,1009,Business Development & Growth,Entry Fees,40237,Miscellaneous Expenses,5034,Green Flag Application Fee for Withnell Local Nature Reserve,14/07/2017,122642,314.00,Revenue,Keep Britain Tidy,22196
Chorley Borough Council,http://statistics.data.gov.uk/id/local-authority/30UE,Service Management & Support,1009,Business Development & Growth,Entry Fees,40237,Miscellaneous Expenses,5034,Green Flag Application Award Fee for Tatton Recreation Ground,14/07/2017,122643,314.00,Revenue,Keep Britain Tidy,22196
Chorley Borough Council,http://statistics.data.gov.uk/id/local-authority/30UE,Homelessness,1075,Early Intervention,External Contractor,40198,Miscellaneous Expenses,5034,Provision of Young Persons Housing Drop-In 2017/2018,05/07/2017,122278,"3,750.00",Revenue,Key,61252
Chorley Borough Council,http://statistics.data.gov.uk/id/local-authority/30UE,Central Support Services,1009,Early Intervention,Pest Control,20039,Cleaning and Domestic Supplies,5012,2 x 200-000249 - 18K Bag Bromabait Place Packs (360 x 50g) 2 x 200-000184 - 1 x 10k Solo Super Blox933201,05/07/2017,122256,260.66,Revenue,Killgerm Chemicals Ltd,16879
Chorley Borough Council,http://statistics.data.gov.uk/id/local-authority/30UE,Capital,Capital,Business Development & Growth,Main Contractor,3007,Capital Expenditure,Capital,"Design and Build of Osborne Drive Play Area, Clayton-le-Woods, Chorley as per agreed design drawings and contract documents",14/07/2017,122649,"51,798.00",Capital,Kompan,61460
Chorley Borough Council,http://statistics.data.gov.uk/id/local-authority/30UE,Development Control,1091,Customer & Digital,Tools & Equipment - Purchase,40003,"Equipment, Furniture & Materia",5023,Service Level Agreement 2017 - 2018,21/07/2017,122859,843.75,Revenue,Lancashire Archaeological Advisory Services,75761
Chorley Borough Council,http://statistics.data.gov.uk/id/local-authority/30UE,Unapportionable Central OHeads,1009,Customer & Digital,General Subscriptions,40146,Grants and Subscriptions,5031,LCC VAT Helpline for Chorley & South Ribble Shared Financial Services 2017/18,12/07/2017,122435,"1,258.00",Revenue,Lancashire County Council,17758
Chorley Borough Council,http://statistics.data.gov.uk/id/local-authority/30UE,Democratic Represent and  Mgnt,1007,Policy & Governance,Conservation Of Exhibits,40059,Services,5027,"Technical and conservation work for a few items at Astley Hall.  -Hanging painting (WR Lavender), materials & labour: 39.50 -Acrylic mounts",21/07/2017,122848,675.52,Revenue,Lancashire County Council,17758
Chorley Borough Council,http://statistics.data.gov.uk/id/local-authority/30UE,Corporate Management,1008,Policy & Governance,Other Fees,40212,Miscellaneous Expenses,5034,Purchase order for four weekly payment,12/07/2017,122536,892.02,Revenue,Lancashire Fayre,62967
Chorley Borough Council,http://statistics.data.gov.uk/id/local-authority/30UE,Unapportionable Central OHeads,1009,Policy & Governance,Service Fees,40056,Services,5027,Wellbeing Coaching Sessions for NAMES REDACTED,26/07/2017,122866,400.00,Revenue,Lancashire Mind Ltd,18578
Chorley Borough Council,http://statistics.data.gov.uk/id/local-authority/30UE,Other Short Term Creditors,,Policy & Governance,General Balances,100,Balance Sheet,Balance,ees,20/07/2017,120604,"42,862.42",Revenue,Lancashire Pensions Services,16696
Chorley Borough Council,http://statistics.data.gov.uk/id/local-authority/30UE,Other Short Term Creditors,,Policy & Governance,General Balances,100,Balance Sheet,Balance,ers,20/07/2017,120604,"94,711.09",Revenue,Lancashire Pensions Services,16696
Chorley Borough Council,http://statistics.data.gov.uk/id/local-authority/30UE,Unapportionable Central OHeads,1009,Policy & Governance,Pensions Deficit Recovery Contributions,12003,Direct Employee Expenses,5001,deficit,20/07/2017,120604,"79,633.33",Revenue,Lancashire Pensions Services,16696
Chorley Borough Council,http://statistics.data.gov.uk/id/local-authority/30UE,Other Short Term Creditors,,Policy & Governance,General Balances,100,Balance Sheet,Balance,ees cont,20/07/2017,121303,"42,588.60",Revenue,Lancashire Pensions Services,16696
Chorley Borough Council,http://statistics.data.gov.uk/id/local-authority/30UE,Other Short Term Creditors,,Policy & Governance,General Balances,100,Balance Sheet,Balance,ers cont,20/07/2017,121303,"94,445.65",Revenue,Lancashire Pensions Services,16696
Chorley Borough Council,http://statistics.data.gov.uk/id/local-authority/30UE,Unapportionable Central OHeads,1009,Policy & Governance,Pensions Deficit Recovery Contributions,12003,Direct Employee Expenses,5001,deficit,20/07/2017,121303,"79,633.33",Revenue,Lancashire Pensions Services,16696
Chorley Borough Council,http://statistics.data.gov.uk/id/local-authority/30UE,Democratic Represent and  Mgnt,1007,Policy & Governance,Pensions Increase Act Payments,18005,Indirect Employee Expenses,5002,pension strain,20/07/2017,122518,"7,886.59",Revenue,Lancashire Pensions Services,16696
Chorley Borough Council,http://statistics.data.gov.uk/id/local-authority/30UE,Unapportionable Central OHeads,1009,Policy & Governance,Pensions Increase Act Payments,18005,Indirect Employee Expenses,5002,pension strain,20/07/2017,122521,"5,498.17",Revenue,Lancashire Pensions Services,16696
Chorley Borough Council,http://statistics.data.gov.uk/id/local-authority/30UE,Unapportionable Central OHeads,1009,Policy & Governance,Pensions Increase Act Payments,18005,Indirect Employee Expenses,5002,pension strain,20/07/2017,122521,"2,120.40",Revenue,Lancashire Pensions Services,16696
Chorley Borough Council,http://statistics.data.gov.uk/id/local-authority/30UE,Central Support Services,1009,Policy & Governance,Pensions Increase Act Payments,18005,Indirect Employee Expenses,5002,pension strain,20/07/2017,122521,"30,905.73",Revenue,Lancashire Pensions Services,16696
Chorley Borough Council,http://statistics.data.gov.uk/id/local-authority/30UE,Corporate Management,1008,Customer & Digital,Clinical Waste Collection,50007,Private Contractors,5042,"Disposal of clinical waste from Chorley household. April 2016 to March 2017. Yellow bag collections, approx. 550 per month.",05/07/2017,121261,971.85,Revenue,Lancashire Teaching Hospitals NHS FT,19003
Chorley Borough Council,http://statistics.data.gov.uk/id/local-authority/30UE,Corporate Management,1008,Customer & Digital,Clinical Waste Collection,50007,Private Contractors,5042,"Disposal of clinical waste from Chorley household. April 2017 to March 2018. Yellow bag collections, approx. 550 per month.",26/07/2017,122789,836.00,Revenue,Lancashire Teaching Hospitals NHS FT,19003
Chorley Borough Council,http://statistics.data.gov.uk/id/local-authority/30UE,Community Development,1097,Policy & Governance,Core Funding Grants,40133,Grants and Subscriptions,5031,Commission for Advice Services Contract Year 1,14/07/2017,122654,"15,899.00",Revenue,Lancashire West Citizens Advice Bureaux,17035
Chorley Borough Council,http://statistics.data.gov.uk/id/local-authority/30UE,Unapportionable Central OHeads,1009,Policy & Governance,HR Approved Training Expenses,17001,Indirect Employee Expenses,5002,Subscription to Learning Pool Essential Service - Year 2 Payment,26/07/2017,122867,"5,000.00",Revenue,Learning Pool Limited,76161
Chorley Borough Council,http://statistics.data.gov.uk/id/local-authority/30UE,Unapportionable Central OHeads,1009,Policy & Governance,Publications,40054,"Printing, Stationery & General",5026,publication for legal,14/07/2017,122638,365.90,Revenue,Lexis Nexis UK,16688
Chorley Borough Council,http://statistics.data.gov.uk/id/local-authority/30UE,Unapportionable Central OHeads,1009,Policy & Governance,Publications,40054,"Printing, Stationery & General",5026,Publications,14/07/2017,122638,381.10,Revenue,Lexis Nexis UK,16688
Chorley Borough Council,http://statistics.data.gov.uk/id/local-authority/30UE,Unapportionable Central OHeads,1009,Customer & Digital,Professional Fees,14011,Direct Employee Expenses,5001,Capacity Grid Empty Homes Review 2017.,21/07/2017,122813,"2,810.77",Revenue,Liberata (Capacity Grid),67989
Chorley Borough Council,http://statistics.data.gov.uk/id/local-authority/30UE,Unapportionable Central OHeads,1009,Customer & Digital,Professional Fees,14011,Direct Employee Expenses,5001,Capacity Grid Empty Homes Review 2017.,21/07/2017,122814,"2,174.37",Revenue,Liberata (Capacity Grid),67989
Chorley Borough Council,http://statistics.data.gov.uk/id/local-authority/30UE,Business Support,1095,Business Development & Growth,Grants To Other Organisations,40127,Grants and Subscriptions,5031,sib grant,21/07/2017,122843,250.00,Revenue,NAME REDACTED,76666
Chorley Borough Council,http://statistics.data.gov.uk/id/local-authority/30UE,Unapportionable Central OHeads,1009,Policy & Governance,Burglar Alarms & Security Systems,20075,Fixtures and Fittings,5010,1 x Abloy EL580 /70 Electronic lock 517.37 + Vat Installation 105.00 + Vat,07/07/2017,122381,622.37,Revenue,Lock-Tec,76749
Chorley Borough Council,http://statistics.data.gov.uk/id/local-authority/30UE,Democratic Represent and  Mgnt,1007,Business Development & Growth,External Contractor,40198,Miscellaneous Expenses,5034,Tree maintenance work to lime trees on Rangletts Allotments,14/07/2017,122624,350.00,Revenue,M J Walker,62044
Chorley Borough Council,http://statistics.data.gov.uk/id/local-authority/30UE,Service Management & Support,1009,Customer & Digital,Grounds Maintenance Contractor,20043,Grounds Maintenance Costs,5013,For tree works carried out in June - Listed on Invoice 20,14/07/2017,122628,"3,355.00",Revenue,M J Walker,62044
Chorley Borough Council,http://statistics.data.gov.uk/id/local-authority/30UE,Tourism,1039,Policy & Governance,Publicity - Advertising,40157,Miscellaneous Expenses,5034,Radio Advertising for Chorley Flower Show,19/07/2017,122769,"4,275.00",Revenue,Marvel At Everything Ltd,70955
Chorley Borough Council,http://statistics.data.gov.uk/id/local-authority/30UE,Democratic Represent and  Mgnt,1007,Customer & Digital,Supplies-Grounds Maintenance,40025,"Equipment, Furniture & Materia",5023,10 ton of Mushroom compost. Delivered to Hartwood roundabout,12/07/2017,122443,290.70,Revenue,Mc & Ma Stewart (Haulage Ltd),16627
Chorley Borough Council,http://statistics.data.gov.uk/id/local-authority/30UE,Democratic Represent and  Mgnt,1007,Customer & Digital,Playground Equipment,40008,"Equipment, Furniture & Materia",5023,90 cube of play bark,26/07/2017,122885,"2,565.00",Revenue,Mc & Ma Stewart (Haulage Ltd),16627
Chorley Borough Council,http://statistics.data.gov.uk/id/local-authority/30UE,Capital,Capital,Customer & Digital,Equipment,3014,Capital Expenditure,Capital,140 litre wheeled bin Colour Blue with Chorley logo,05/07/2017,121739,"6,200.00",Capital,MGB Plastics Ltd,18624
Chorley Borough Council,http://statistics.data.gov.uk/id/local-authority/30UE,Capital,Capital,Customer & Digital,Equipment,3014,Capital Expenditure,Capital,240 litre wheeled bin Colour : Brown with Chorley logo.,05/07/2017,121740,"8,680.00",Capital,MGB Plastics Ltd,18624
Chorley Borough Council,http://statistics.data.gov.uk/id/local-authority/30UE,Capital,Capital,Customer & Digital,Equipment,3014,Capital Expenditure,Capital,140 litre wheeled bin Colour :Brown with Chorley logo,05/07/2017,121741,"6,200.00",Capital,MGB Plastics Ltd,18624
Chorley Borough Council,http://statistics.data.gov.uk/id/local-authority/30UE,Private Sector HSG Renewal,1073,Early Intervention,External Contractor,40198,Miscellaneous Expenses,5034,ADDRESS REDACTED,14/07/2017,122682,250.00,Revenue,Mobility Care Services,70841
Chorley Borough Council,http://statistics.data.gov.uk/id/local-authority/30UE,Private Sector HSG Renewal,1073,Early Intervention,External Contractor,40198,Miscellaneous Expenses,5034,ADDRESS REDACTED,14/07/2017,122683,250.00,Revenue,Mobility Care Services,70841
Chorley Borough Council,http://statistics.data.gov.uk/id/local-authority/30UE,Private Sector HSG Renewal,1073,Early Intervention,External Contractor,40198,Miscellaneous Expenses,5034,ADDRESS REDACTED,14/07/2017,122684,250.00,Revenue,Mobility Care Services,70841
Chorley Borough Council,http://statistics.data.gov.uk/id/local-authority/30UE,Private Sector HSG Renewal,1073,Early Intervention,External Contractor,40198,Miscellaneous Expenses,5034,ADDRESS REDACTED,14/07/2017,122685,420.00,Revenue,Mobility Care Services,70841
Chorley Borough Council,http://statistics.data.gov.uk/id/local-authority/30UE,Private Sector HSG Renewal,1073,Early Intervention,External Contractor,40198,Miscellaneous Expenses,5034,ADDRESS REDACTED,14/07/2017,122686,250.00,Revenue,Mobility Care Services,70841
Chorley Borough Council,http://statistics.data.gov.uk/id/local-authority/30UE,Private Sector HSG Renewal,1073,Early Intervention,External Contractor,40198,Miscellaneous Expenses,5034,ADDRESS REDACTED,14/07/2017,122687,250.00,Revenue,Mobility Care Services,70841
Chorley Borough Council,http://statistics.data.gov.uk/id/local-authority/30UE,Private Sector HSG Renewal,1073,Early Intervention,External Contractor,40198,Miscellaneous Expenses,5034,ADDRESS REDACTED,14/07/2017,122688,256.00,Revenue,Mobility Care Services,70841
Chorley Borough Council,http://statistics.data.gov.uk/id/local-authority/30UE,Capital,Capital,Business Development & Growth,Main Contractor,3007,Capital Expenditure,Capital,Manufacture and supply of metalwork arch gateway feature for Theatre Walk (side of Argos) as per detailed drawing provided by,19/07/2017,122382,"2,918.40",Capital,Morgan Brothers Metalwork Solutions,76663
Chorley Borough Council,http://statistics.data.gov.uk/id/local-authority/30UE,Service Management & Support,1009,Customer & Digital,Supplies-Grounds Maintenance,40025,"Equipment, Furniture & Materia",5023,Examination and statement for Birkacre Reservoir,26/07/2017,122853,"1,078.65",Revenue,Mott Macdonald Ltd,16200
Chorley Borough Council,http://statistics.data.gov.uk/id/local-authority/30UE,Central Support Services,1009,Customer & Digital,Professional Fees,40063,Services,5027,Saturday model - obtain data for full study Botany Bay and Land at Gale Moss,19/07/2017,122063,"3,800.00",Revenue,Mouchel Ltd,76523
Chorley Borough Council,http://statistics.data.gov.uk/id/local-authority/30UE,Democratic Represent and  Mgnt,1007,Business Development & Growth,External Contractor,40198,Miscellaneous Expenses,5034,Grass cutting and weed spraying at Manor Road Allotments as drawing issued.,14/07/2017,122656,260.00,Revenue,Mr Andy Hart,72236
Chorley Borough Council,http://statistics.data.gov.uk/id/local-authority/30UE,Business Support,1095,Business Development & Growth,Grants To Other Organisations,40127,Grants and Subscriptions,5031,sib grant,21/07/2017,122632,250.00,Revenue,NAME REDACTED,76222
Chorley Borough Council,http://statistics.data.gov.uk/id/local-authority/30UE,Unapportionable Central OHeads,1009,Policy & Governance,Printing,40043,"Printing, Stationery & General",5026,"14,000 x What`s Happening Magazines",05/07/2017,122281,"2,546.00",Revenue,N B Colour Print Ltd,17917
Chorley Borough Council,http://statistics.data.gov.uk/id/local-authority/30UE,Business Support,1095,Business Development & Growth,Grants To Other Organisations,40127,Grants and Subscriptions,5031,sib grant,21/07/2017,122733,250.00,Revenue,NAME REDACTED,76829
Chorley Borough Council,http://statistics.data.gov.uk/id/local-authority/30UE,Business Support,1095,Business Development & Growth,Refuse Collection,20037,Cleaning and Domestic Supplies,5012,Market Walk Yard 3 - 2 x 8 Yard FEL general waste @48.07 per lift (per FEL) - estimated 26 lifts per FEL per Year,12/07/2017,122406,288.42,Revenue,Neales Waste Management,17583
Chorley Borough Council,http://statistics.data.gov.uk/id/local-authority/30UE,Business Support,1095,Business Development & Growth,Refuse Collection,20037,Cleaning and Domestic Supplies,5012,Market Walk Yard 1 - General Waste compacted - 35 Yard roll on/roll off skip from compactor @64.83 per exchange estimated 52 per year,12/07/2017,122409,129.66,Revenue,Neales Waste Management,17583
Chorley Borough Council,http://statistics.data.gov.uk/id/local-authority/30UE,Business Support,1095,Business Development & Growth,Refuse Collection,20037,Cleaning and Domestic Supplies,5012,Market Walk Yard 1 general waste compacted - 35 yard roll on/roll off skip from compactor disposal costs per tonne (variable depending ,12/07/2017,122409,"2,109.76",Revenue,Neales Waste Management,17583
Chorley Borough Council,http://statistics.data.gov.uk/id/local-authority/30UE,Service Management & Support,1009,Customer & Digital,Refuse Collection,20037,Cleaning and Domestic Supplies,5012,Exchange of 20 Street sweeping skips at price quoted from Bengal St depot PR7 1SA,14/07/2017,122413,972.45,Revenue,Neales Waste Management,17583
Chorley Borough Council,http://statistics.data.gov.uk/id/local-authority/30UE,Service Management & Support,1009,Customer & Digital,Refuse Collection,20037,Cleaning and Domestic Supplies,5012,Exchange of 35yrd Street cleaning and flytip skip at price quoted from Bengal St depot PR7 1SA,14/07/2017,122413,"1,312.88",Revenue,Neales Waste Management,17583
Chorley Borough Council,http://statistics.data.gov.uk/id/local-authority/30UE,Service Management & Support,1009,Customer & Digital,Refuse Collection,20037,Cleaning and Domestic Supplies,5012,Exchange of 35yrd compostable green waste skip at price quoted from Bengal St depot PR7 1SA,14/07/2017,122413,649.25,Revenue,Neales Waste Management,17583
Chorley Borough Council,http://statistics.data.gov.uk/id/local-authority/30UE,Service Management & Support,1009,Customer & Digital,Refuse Collection,20037,Cleaning and Domestic Supplies,5012,Charge for disposal of compostable green waste at price quoted,14/07/2017,122413,37.50,Revenue,Neales Waste Management,17583
Chorley Borough Council,http://statistics.data.gov.uk/id/local-authority/30UE,Central Support Services,1009,Early Intervention,Miscellaneous Expenses,40200,Miscellaneous Expenses,5034,skip day mawdesley,14/07/2017,122520,675.59,Revenue,Neales Waste Management,17583
Chorley Borough Council,http://statistics.data.gov.uk/id/local-authority/30UE,Capital,Capital,Business Development & Growth,Other Expenses,3030,Capital Expenditure,Capital,Release of retention for works to Astley Park Play Area,07/07/2017,122188,"7,730.61",Capital,Newground CIC,22064
Chorley Borough Council,http://statistics.data.gov.uk/id/local-authority/30UE,Capital,Capital,Business Development & Growth,Main Contractor,3007,Capital Expenditure,Capital,Resurface Footpaths at Chorley Cemetery,19/07/2017,122298,"11,327.48",Capital,Newground CIC,22064
Chorley Borough Council,http://statistics.data.gov.uk/id/local-authority/30UE,Unapportionable Central OHeads,1009,Policy & Governance,Publicity - Advertising,40157,Miscellaneous Expenses,5034,Single Page advert for great days out guide,12/07/2017,122377,250.00,Revenue,Newsquest (Lancashire) Limited,18117
Chorley Borough Council,http://statistics.data.gov.uk/id/local-authority/30UE,Unapportionable Central OHeads,1009,Policy & Governance,Miscellaneous Expenses,40200,Miscellaneous Expenses,5034,Single page advert for great days out guide,12/07/2017,122378,250.00,Revenue,Newsquest (Lancashire) Limited,18117
Chorley Borough Council,http://statistics.data.gov.uk/id/local-authority/30UE,Unapportionable Central OHeads,1009,Policy & Governance,Miscellaneous Expenses,40200,Miscellaneous Expenses,5034,30 x Kenwood TKD340T UHF Digital radios 5 x Six way charger units 18 x D` Type earpiece and in line microphone and PTT Plus delivery,26/07/2017,122481,"5,662.00",Revenue,Nine Hundred Communications,51033
Chorley Borough Council,http://statistics.data.gov.uk/id/local-authority/30UE,Service Management & Support,1009,Customer & Digital,Vehicle Maintenance,30045,Direct Transport Costs,5016,Supply box of brush segments for Johnston VT651 delivered to Bengal St depot,26/07/2017,122740,59.02,Revenue,Northern Municipal Spares Ltd,17752
Chorley Borough Council,http://statistics.data.gov.uk/id/local-authority/30UE,Service Management & Support,1009,Customer & Digital,Vehicle Maintenance,30045,Direct Transport Costs,5016,Supply 10 poly brushes for Schmidt Swingo delivered to Bengal St depot,26/07/2017,122740,232.35,Revenue,Northern Municipal Spares Ltd,17752
Chorley Borough Council,http://statistics.data.gov.uk/id/local-authority/30UE,Service Management & Support,1009,Customer & Digital,Vehicle Maintenance,30045,Direct Transport Costs,5016,Supply 10 poly wire brushes for Schmidt Swingo delivered to Bengal St depot,26/07/2017,122740,347.25,Revenue,Northern Municipal Spares Ltd,17752
Chorley Borough Council,http://statistics.data.gov.uk/id/local-authority/30UE,Service Management & Support,1009,Customer & Digital,Vehicle Maintenance,30045,Direct Transport Costs,5016,Please supply 1 x Belly Brush complete for our Johnston Mechanical Sweeper,26/07/2017,122785,87.05,Revenue,Northern Municipal Spares Ltd,17752
Chorley Borough Council,http://statistics.data.gov.uk/id/local-authority/30UE,Service Management & Support,1009,Customer & Digital,Vehicle Maintenance,30045,Direct Transport Costs,5016,Please supply Poly Wire brush for our Schimdt Small Mechanical Sweepers,26/07/2017,122785,277.80,Revenue,Northern Municipal Spares Ltd,17752
Chorley Borough Council,http://statistics.data.gov.uk/id/local-authority/30UE,Service Management & Support,1009,Customer & Digital,Vehicle Maintenance,30045,Direct Transport Costs,5016,Please supply Poly brush for our Schimdt Small Mechanical Sweepers,26/07/2017,122785,145.98,Revenue,Northern Municipal Spares Ltd,17752
Chorley Borough Council,http://statistics.data.gov.uk/id/local-authority/30UE,Business Support,1095,Policy & Governance,Other Fees,40212,Miscellaneous Expenses,5034,Reimbursement of the cost of site surveys undertaken by Northern Trust Co Ltd for land at Southport Road (CBC agreed to meet the cost of),14/07/2017,122028,"12,865.00",Revenue,Northern Trust Company Ltd,19090
Chorley Borough Council,http://statistics.data.gov.uk/id/local-authority/30UE,Parking Services,1066,Business Development & Growth,Electricity,20013,Energy Costs,5006,car park,07/07/2017,122252,1.10,Revenue,Npower Commercial Gas,16814
Chorley Borough Council,http://statistics.data.gov.uk/id/local-authority/30UE,Parking Services,1066,Business Development & Growth,Electricity,20013,Energy Costs,5006,car park,07/07/2017,122252,1.13,Revenue,Npower Commercial Gas,16814
Chorley Borough Council,http://statistics.data.gov.uk/id/local-authority/30UE,Parking Services,1066,Business Development & Growth,Electricity,20013,Energy Costs,5006,pay and display,07/07/2017,122252,109.65,Revenue,Npower Commercial Gas,16814
Chorley Borough Council,http://statistics.data.gov.uk/id/local-authority/30UE,Parking Services,1066,Business Development & Growth,Electricity,20013,Energy Costs,5006,pay and display,07/07/2017,122252,110.06,Revenue,Npower Commercial Gas,16814
Chorley Borough Council,http://statistics.data.gov.uk/id/local-authority/30UE,Central Support Services,1009,Business Development & Growth,Electricity,20013,Energy Costs,5006,cctv,07/07/2017,122252,271.25,Revenue,Npower Commercial Gas,16814
Chorley Borough Council,http://statistics.data.gov.uk/id/local-authority/30UE,Central Support Services,1009,Business Development & Growth,Electricity,20013,Energy Costs,5006,cctv,07/07/2017,122252,272.43,Revenue,Npower Commercial Gas,16814
Chorley Borough Council,http://statistics.data.gov.uk/id/local-authority/30UE,Unapportionable Central OHeads,1009,Business Development & Growth,Electricity,20013,Energy Costs,5006,union street,07/07/2017,122341,"3,516.61",Revenue,Npower Commercial Gas,16814
Chorley Borough Council,http://statistics.data.gov.uk/id/local-authority/30UE,Unapportionable Central OHeads,1009,Business Development & Growth,Electricity,20013,Energy Costs,5006,unon street,07/07/2017,122341,"3,205.03",Revenue,Npower Commercial Gas,16814
Chorley Borough Council,http://statistics.data.gov.uk/id/local-authority/30UE,Unapportionable Central OHeads,1009,Business Development & Growth,Electricity,20013,Energy Costs,5006,bengal street,07/07/2017,122341,763.31,Revenue,Npower Commercial Gas,16814
Chorley Borough Council,http://statistics.data.gov.uk/id/local-authority/30UE,Unapportionable Central OHeads,1009,Business Development & Growth,Electricity,20013,Energy Costs,5006,bengal street,07/07/2017,122341,711.20,Revenue,Npower Commercial Gas,16814
Chorley Borough Council,http://statistics.data.gov.uk/id/local-authority/30UE,Unapportionable Central OHeads,1009,Business Development & Growth,Electricity,20013,Energy Costs,5006,town hall,07/07/2017,122341,"1,784.31",Revenue,Npower Commercial Gas,16814
Chorley Borough Council,http://statistics.data.gov.uk/id/local-authority/30UE,Unapportionable Central OHeads,1009,Business Development & Growth,Electricity,20013,Energy Costs,5006,town hall,07/07/2017,122341,"1,775.78",Revenue,Npower Commercial Gas,16814
Chorley Borough Council,http://statistics.data.gov.uk/id/local-authority/30UE,Democratic Represent and  Mgnt,1007,Business Development & Growth,Electricity,20013,Energy Costs,5006,tunley holme,07/07/2017,122341,141.83,Revenue,Npower Commercial Gas,16814
Chorley Borough Council,http://statistics.data.gov.uk/id/local-authority/30UE,Democratic Represent and  Mgnt,1007,Business Development & Growth,Electricity,20013,Energy Costs,5006,tunley holme,07/07/2017,122341,127.10,Revenue,Npower Commercial Gas,16814
Chorley Borough Council,http://statistics.data.gov.uk/id/local-authority/30UE,Democratic Represent and  Mgnt,1007,Policy & Governance,Electricity,20013,Energy Costs,5006,harpers lane rec,07/07/2017,122342,31.39,Revenue,Npower Commercial Gas,16814
Chorley Borough Council,http://statistics.data.gov.uk/id/local-authority/30UE,Democratic Represent and  Mgnt,1007,Policy & Governance,Electricity,20013,Energy Costs,5006,harpers lane rec,07/07/2017,122342,49.66,Revenue,Npower Commercial Gas,16814
Chorley Borough Council,http://statistics.data.gov.uk/id/local-authority/30UE,Democratic Represent and  Mgnt,1007,Policy & Governance,Electricity,20013,Energy Costs,5006,tatton rec,07/07/2017,122342,9.15,Revenue,Npower Commercial Gas,16814
Chorley Borough Council,http://statistics.data.gov.uk/id/local-authority/30UE,Democratic Represent and  Mgnt,1007,Policy & Governance,Electricity,20013,Energy Costs,5006,tatton rec,07/07/2017,122342,12.31,Revenue,Npower Commercial Gas,16814
Chorley Borough Council,http://statistics.data.gov.uk/id/local-authority/30UE,Service Management & Support,1009,Policy & Governance,Electricity,20013,Energy Costs,5006,gillet playing field,07/07/2017,122342,4.86,Revenue,Npower Commercial Gas,16814
Chorley Borough Council,http://statistics.data.gov.uk/id/local-authority/30UE,Service Management & Support,1009,Policy & Governance,Electricity,20013,Energy Costs,5006,gillet playing field,07/07/2017,122342,6.75,Revenue,Npower Commercial Gas,16814
Chorley Borough Council,http://statistics.data.gov.uk/id/local-authority/30UE,Democratic Represent and  Mgnt,1007,Policy & Governance,Electricity,20013,Energy Costs,5006,king geroge,07/07/2017,122342,3.68,Revenue,Npower Commercial Gas,16814
Chorley Borough Council,http://statistics.data.gov.uk/id/local-authority/30UE,Democratic Represent and  Mgnt,1007,Policy & Governance,Electricity,20013,Energy Costs,5006,king geroge,07/07/2017,122342,3.48,Revenue,Npower Commercial Gas,16814
Chorley Borough Council,http://statistics.data.gov.uk/id/local-authority/30UE,Democratic Represent and  Mgnt,1007,Policy & Governance,Electricity,20013,Energy Costs,5006,astley hall farm,07/07/2017,122342,69.54,Revenue,Npower Commercial Gas,16814
Chorley Borough Council,http://statistics.data.gov.uk/id/local-authority/30UE,Democratic Represent and  Mgnt,1007,Policy & Governance,Electricity,20013,Energy Costs,5006,astley hall farm house,07/07/2017,122342,83.56,Revenue,Npower Commercial Gas,16814
Chorley Borough Council,http://statistics.data.gov.uk/id/local-authority/30UE,Democratic Represent and  Mgnt,1007,Policy & Governance,Electricity,20013,Energy Costs,5006,astley hall,07/07/2017,122342,64.78,Revenue,Npower Commercial Gas,16814
Chorley Borough Council,http://statistics.data.gov.uk/id/local-authority/30UE,Democratic Represent and  Mgnt,1007,Policy & Governance,Electricity,20013,Energy Costs,5006,astley hall,07/07/2017,122342,70.71,Revenue,Npower Commercial Gas,16814
Chorley Borough Council,http://statistics.data.gov.uk/id/local-authority/30UE,Democratic Represent and  Mgnt,1007,Policy & Governance,Electricity,20013,Energy Costs,5006,eaves green,07/07/2017,122342,110.26,Revenue,Npower Commercial Gas,16814
Chorley Borough Council,http://statistics.data.gov.uk/id/local-authority/30UE,Democratic Represent and  Mgnt,1007,Policy & Governance,Electricity,20013,Energy Costs,5006,eaves green,07/07/2017,122342,111.44,Revenue,Npower Commercial Gas,16814
Chorley Borough Council,http://statistics.data.gov.uk/id/local-authority/30UE,Community Development,1097,Policy & Governance,Electricity,20013,Energy Costs,5006,35-39 market street,07/07/2017,122342,91.60,Revenue,Npower Commercial Gas,16814
Chorley Borough Council,http://statistics.data.gov.uk/id/local-authority/30UE,Community Development,1097,Policy & Governance,Electricity,20013,Energy Costs,5006,35-39 market street,07/07/2017,122342,133.71,Revenue,Npower Commercial Gas,16814
Chorley Borough Council,http://statistics.data.gov.uk/id/local-authority/30UE,Community Development,1097,Policy & Governance,Electricity,20013,Energy Costs,5006,35-39 market street,07/07/2017,122342,26.84,Revenue,Npower Commercial Gas,16814
Chorley Borough Council,http://statistics.data.gov.uk/id/local-authority/30UE,Community Development,1097,Policy & Governance,Electricity,20013,Energy Costs,5006,35-39 market street,07/07/2017,122342,34.08,Revenue,Npower Commercial Gas,16814
Chorley Borough Council,http://statistics.data.gov.uk/id/local-authority/30UE,Community Development,1097,Policy & Governance,Electricity,20013,Energy Costs,5006,35-39 market street,07/07/2017,122342,65.70,Revenue,Npower Commercial Gas,16814
Chorley Borough Council,http://statistics.data.gov.uk/id/local-authority/30UE,Community Development,1097,Policy & Governance,Electricity,20013,Energy Costs,5006,35-39 maket street,07/07/2017,122342,97.28,Revenue,Npower Commercial Gas,16814
Chorley Borough Council,http://statistics.data.gov.uk/id/local-authority/30UE,Democratic Represent and  Mgnt,1007,Policy & Governance,Electricity,20013,Energy Costs,5006,coronation rec,07/07/2017,122342,10.89,Revenue,Npower Commercial Gas,16814
Chorley Borough Council,http://statistics.data.gov.uk/id/local-authority/30UE,Democratic Represent and  Mgnt,1007,Policy & Governance,Electricity,20013,Energy Costs,5006,coronation rec,07/07/2017,122342,12.25,Revenue,Npower Commercial Gas,16814
Chorley Borough Council,http://statistics.data.gov.uk/id/local-authority/30UE,Democratic Represent and  Mgnt,1007,Policy & Governance,Electricity,20013,Energy Costs,5006,astley village,07/07/2017,122342,114.22,Revenue,Npower Commercial Gas,16814
Chorley Borough Council,http://statistics.data.gov.uk/id/local-authority/30UE,Democratic Represent and  Mgnt,1007,Policy & Governance,Electricity,20013,Energy Costs,5006,astley village,07/07/2017,122342,97.92,Revenue,Npower Commercial Gas,16814
Chorley Borough Council,http://statistics.data.gov.uk/id/local-authority/30UE,Democratic Represent and  Mgnt,1007,Policy & Governance,Electricity,20013,Energy Costs,5006,astley coach house,07/07/2017,122342,958.53,Revenue,Npower Commercial Gas,16814
Chorley Borough Council,http://statistics.data.gov.uk/id/local-authority/30UE,Democratic Represent and  Mgnt,1007,Policy & Governance,Electricity,20013,Energy Costs,5006,astley coach house,07/07/2017,122342,"1,088.59",Revenue,Npower Commercial Gas,16814
Chorley Borough Council,http://statistics.data.gov.uk/id/local-authority/30UE,Democratic Represent and  Mgnt,1007,Policy & Governance,Electricity,20013,Energy Costs,5006,astley cottage,07/07/2017,122342,70.01,Revenue,Npower Commercial Gas,16814
Chorley Borough Council,http://statistics.data.gov.uk/id/local-authority/30UE,Democratic Represent and  Mgnt,1007,Policy & Governance,Electricity,20013,Energy Costs,5006,astley cottage,07/07/2017,122342,70.68,Revenue,Npower Commercial Gas,16814
Chorley Borough Council,http://statistics.data.gov.uk/id/local-authority/30UE,Corporate Management,1008,Policy & Governance,Electricity,20013,Energy Costs,5006,cemetry chapel,07/07/2017,122342,2.76,Revenue,Npower Commercial Gas,16814
Chorley Borough Council,http://statistics.data.gov.uk/id/local-authority/30UE,Corporate Management,1008,Policy & Governance,Electricity,20013,Energy Costs,5006,cemetry chapel,07/07/2017,122342,2.66,Revenue,Npower Commercial Gas,16814
Chorley Borough Council,http://statistics.data.gov.uk/id/local-authority/30UE,Corporate Management,1008,Policy & Governance,Electricity,20013,Energy Costs,5006,cemetry chapel,07/07/2017,122342,2.13,Revenue,Npower Commercial Gas,16814
Chorley Borough Council,http://statistics.data.gov.uk/id/local-authority/30UE,Corporate Management,1008,Policy & Governance,Electricity,20013,Energy Costs,5006,cemetry chapel,07/07/2017,122342,2.06,Revenue,Npower Commercial Gas,16814
Chorley Borough Council,http://statistics.data.gov.uk/id/local-authority/30UE,Corporate Management,1008,Policy & Governance,Electricity,20013,Energy Costs,5006,cemetries office,07/07/2017,122342,29.40,Revenue,Npower Commercial Gas,16814
Chorley Borough Council,http://statistics.data.gov.uk/id/local-authority/30UE,Corporate Management,1008,Policy & Governance,Electricity,20013,Energy Costs,5006,cemetries office,07/07/2017,122342,32.66,Revenue,Npower Commercial Gas,16814
Chorley Borough Council,http://statistics.data.gov.uk/id/local-authority/30UE,Democratic Represent and  Mgnt,1007,Policy & Governance,Electricity,20013,Energy Costs,5006,astley park,07/07/2017,122342,270.12,Revenue,Npower Commercial Gas,16814
Chorley Borough Council,http://statistics.data.gov.uk/id/local-authority/30UE,Democratic Represent and  Mgnt,1007,Policy & Governance,Electricity,20013,Energy Costs,5006,astley park,07/07/2017,122342,331.16,Revenue,Npower Commercial Gas,16814
Chorley Borough Council,http://statistics.data.gov.uk/id/local-authority/30UE,Economic Development,1096,Policy & Governance,Electricity,20013,Energy Costs,5006,market compactor,07/07/2017,122342,70.13,Revenue,Npower Commercial Gas,16814
Chorley Borough Council,http://statistics.data.gov.uk/id/local-authority/30UE,Economic Development,1096,Policy & Governance,Electricity,20013,Energy Costs,5006,market compactor,07/07/2017,122342,123.91,Revenue,Npower Commercial Gas,16814
Chorley Borough Council,http://statistics.data.gov.uk/id/local-authority/30UE,Democratic Represent and  Mgnt,1007,Policy & Governance,Electricity,20013,Energy Costs,5006,king geroge playing,07/07/2017,122342,7.79,Revenue,Npower Commercial Gas,16814
Chorley Borough Council,http://statistics.data.gov.uk/id/local-authority/30UE,Democratic Represent and  Mgnt,1007,Policy & Governance,Electricity,20013,Energy Costs,5006,king geroge playing,07/07/2017,122342,7.03,Revenue,Npower Commercial Gas,16814
Chorley Borough Council,http://statistics.data.gov.uk/id/local-authority/30UE,Economic Development,1096,Policy & Governance,Electricity,20013,Energy Costs,5006,portacabin,07/07/2017,122342,2.76,Revenue,Npower Commercial Gas,16814
Chorley Borough Council,http://statistics.data.gov.uk/id/local-authority/30UE,Economic Development,1096,Policy & Governance,Electricity,20013,Energy Costs,5006,portacabin,07/07/2017,122342,2.66,Revenue,Npower Commercial Gas,16814
Chorley Borough Council,http://statistics.data.gov.uk/id/local-authority/30UE,Homelessness,1075,Policy & Governance,Electricity,20013,Energy Costs,5006,cotsowld house,07/07/2017,122342,396.06,Revenue,Npower Commercial Gas,16814
Chorley Borough Council,http://statistics.data.gov.uk/id/local-authority/30UE,Homelessness,1075,Policy & Governance,Electricity,20013,Energy Costs,5006,cotsowld house,07/07/2017,122342,450.59,Revenue,Npower Commercial Gas,16814
Chorley Borough Council,http://statistics.data.gov.uk/id/local-authority/30UE,Homelessness,1075,Policy & Governance,Electricity,20013,Energy Costs,5006,cotsolwd house,07/07/2017,122342,157.50,Revenue,Npower Commercial Gas,16814
Chorley Borough Council,http://statistics.data.gov.uk/id/local-authority/30UE,Homelessness,1075,Policy & Governance,Electricity,20013,Energy Costs,5006,cotsowld house,07/07/2017,122342,187.47,Revenue,Npower Commercial Gas,16814
Chorley Borough Council,http://statistics.data.gov.uk/id/local-authority/30UE,Homelessness,1075,Policy & Governance,Electricity,20013,Energy Costs,5006,cotsowld house,07/07/2017,122342,63.02,Revenue,Npower Commercial Gas,16814
Chorley Borough Council,http://statistics.data.gov.uk/id/local-authority/30UE,Homelessness,1075,Policy & Governance,Electricity,20013,Energy Costs,5006,cotsowld house,07/07/2017,122342,64.00,Revenue,Npower Commercial Gas,16814
Chorley Borough Council,http://statistics.data.gov.uk/id/local-authority/30UE,Recreation & Sport,1037,Policy & Governance,Electricity,20013,Energy Costs,5006,buttermere,07/07/2017,122342,73.61,Revenue,Npower Commercial Gas,16814
Chorley Borough Council,http://statistics.data.gov.uk/id/local-authority/30UE,Recreation & Sport,1037,Policy & Governance,Electricity,20013,Energy Costs,5006,buttermere,07/07/2017,122342,79.33,Revenue,Npower Commercial Gas,16814
Chorley Borough Council,http://statistics.data.gov.uk/id/local-authority/30UE,Democratic Represent and  Mgnt,1007,Policy & Governance,Electricity,20013,Energy Costs,5006,rangletts rec,07/07/2017,122342,12.76,Revenue,Npower Commercial Gas,16814
Chorley Borough Council,http://statistics.data.gov.uk/id/local-authority/30UE,Democratic Represent and  Mgnt,1007,Policy & Governance,Electricity,20013,Energy Costs,5006,rangletts rec,07/07/2017,122342,15.10,Revenue,Npower Commercial Gas,16814
Chorley Borough Council,http://statistics.data.gov.uk/id/local-authority/30UE,Business Support,1095,Business Development & Growth,Electricity,20013,Energy Costs,5006,oak house,12/07/2017,122510,112.09,Revenue,Npower Commercial Gas,16814
Chorley Borough Council,http://statistics.data.gov.uk/id/local-authority/30UE,Business Support,1095,Business Development & Growth,Electricity,20013,Energy Costs,5006,oak house,12/07/2017,122510,107.94,Revenue,Npower Commercial Gas,16814
Chorley Borough Council,http://statistics.data.gov.uk/id/local-authority/30UE,Business Support,1095,Business Development & Growth,Electricity,20013,Energy Costs,5006,oak house,12/07/2017,122510,35.45,Revenue,Npower Commercial Gas,16814
Chorley Borough Council,http://statistics.data.gov.uk/id/local-authority/30UE,Unapportionable Central OHeads,1009,Business Development & Growth,Electricity,20013,Energy Costs,5006,union st,12/07/2017,122606,"3,305.60",Revenue,Npower Commercial Gas,16814
Chorley Borough Council,http://statistics.data.gov.uk/id/local-authority/30UE,Unapportionable Central OHeads,1009,Business Development & Growth,Electricity,20013,Energy Costs,5006,bengal st,12/07/2017,122606,784.32,Revenue,Npower Commercial Gas,16814
Chorley Borough Council,http://statistics.data.gov.uk/id/local-authority/30UE,Unapportionable Central OHeads,1009,Business Development & Growth,Electricity,20013,Energy Costs,5006,town hall,12/07/2017,122606,"1,683.67",Revenue,Npower Commercial Gas,16814
Chorley Borough Council,http://statistics.data.gov.uk/id/local-authority/30UE,Democratic Represent and  Mgnt,1007,Business Development & Growth,Electricity,20013,Energy Costs,5006,tunley holme,12/07/2017,122606,136.73,Revenue,Npower Commercial Gas,16814
Chorley Borough Council,http://statistics.data.gov.uk/id/local-authority/30UE,Parking Services,1066,Business Development & Growth,Electricity,20013,Energy Costs,5006,car park,12/07/2017,122636,1.05,Revenue,Npower Commercial Gas,16814
Chorley Borough Council,http://statistics.data.gov.uk/id/local-authority/30UE,Parking Services,1066,Business Development & Growth,Electricity,20013,Energy Costs,5006,car park,12/07/2017,122636,106.10,Revenue,Npower Commercial Gas,16814
Chorley Borough Council,http://statistics.data.gov.uk/id/local-authority/30UE,Central Support Services,1009,Business Development & Growth,Electricity,20013,Energy Costs,5006,cctv,12/07/2017,122636,262.51,Revenue,Npower Commercial Gas,16814
Chorley Borough Council,http://statistics.data.gov.uk/id/local-authority/30UE,Parking Services,1066,Business Development & Growth,External Contractors,50008,Private Contractors,5042,"Vari fee for extra enforcement (May, June, July, August & Sept 17)",12/07/2017,122400,618.80,Revenue,NSL Limited,67253
Chorley Borough Council,http://statistics.data.gov.uk/id/local-authority/30UE,Parking Services,1066,Business Development & Growth,External Contractors,50008,Private Contractors,5042,"Provision of off street car park enforcement, cash collection, cash  counting facilities and third party bulk cash collections for April 2017",12/07/2017,122401,"4,174.07",Revenue,NSL Limited,67253
Chorley Borough Council,http://statistics.data.gov.uk/id/local-authority/30UE,Service Management & Support,1009,Customer & Digital,Supplies-Grounds Maintenance,40025,"Equipment, Furniture & Materia",5023,Triangular wooden planter 2m x 2m x 2m,26/07/2017,122593,450.00,Revenue,Nuchoice Limited,75454
Chorley Borough Council,http://statistics.data.gov.uk/id/local-authority/30UE,Unapportionable Central OHeads,1009,Policy & Governance,HR Approved Training Expenses,17001,Indirect Employee Expenses,5002,Building Partnerships & Networking and Collaborative Working 11 July 2017,26/07/2017,122872,832.50,Revenue,Nwlaeo,17571
Chorley Borough Council,http://statistics.data.gov.uk/id/local-authority/30UE,Capital,Capital,Early Intervention,Main Contractor,3007,Capital Expenditure,Capital,cotsolwd house,07/07/2017,122517,"44,471.65",Capital,P J Services (Bolton) Ltd,62962
Chorley Borough Council,http://statistics.data.gov.uk/id/local-authority/30UE,Parking Services,1066,Business Development & Growth,Printing,40043,"Printing, Stationery & General",5026,Please supply 200k Stelio Adhesive @ 4.65 per thousand= 930 1 face plate= 50 & 2 Reverse Plates=100 for Check Out Chorley,19/07/2017,122658,"1,112.55",Revenue,Paperwork (UK) Limited,18296
Chorley Borough Council,http://statistics.data.gov.uk/id/local-authority/30UE,Parking Services,1066,Business Development & Growth,External Contractors,50008,Private Contractors,5042,Provision of maintenance contract for 9 Pay & Display machines 1st July 17 - 30 June 18 as per quote ref UK5-361,05/07/2017,122173,"5,149.53",Revenue,Parkeon Ltd,16279
Chorley Borough Council,http://statistics.data.gov.uk/id/local-authority/30UE,Parking Services,1066,Business Development & Growth,External Contractors,50008,Private Contractors,5042,Estimated Penalty Charge Notices for Quarter 1 April 2017- June 2017,12/07/2017,122607,291.20,Revenue,PATROL,21859
Chorley Borough Council,http://statistics.data.gov.uk/id/local-authority/30UE,Parking Services,1066,Business Development & Growth,External Contractors,50008,Private Contractors,5042,Estimated Penalty Charge Notices for Quarter 2 July 2017- September 2017,28/07/2017,122993,302.00,Revenue,PATROL,21859
Chorley Borough Council,http://statistics.data.gov.uk/id/local-authority/30UE,Unapportionable Central OHeads,1009,Business Development & Growth,Planned Maintenance,20006,Repairs Maintenance & Alts,5005,Blanket order for PPM works from July 17,19/07/2017,122576,475.92,Revenue,Pennine Fire & Safety Limited,69643
Chorley Borough Council,http://statistics.data.gov.uk/id/local-authority/30UE,Unapportionable Central OHeads,1009,Policy & Governance,Service Fees,40056,Services,5027,Occupational Health Fees for June 2017,14/07/2017,122461,437.00,Revenue,People Asset Management Limited,76487
Chorley Borough Council,http://statistics.data.gov.uk/id/local-authority/30UE,Unapportionable Central OHeads,1009,Policy & Governance,Service Fees,40056,Services,5027,Service Fees,14/07/2017,122461,300.00,Revenue,People Asset Management Limited,76487
Chorley Borough Council,http://statistics.data.gov.uk/id/local-authority/30UE,Capital,Capital,Business Development & Growth,Other Capital Related Fees,3024,Capital Expenditure,Capital,Primrose Gardens May 2017,12/07/2017,121617,"3,121.38",Capital,Perfect Circle JV Ltd,76438
Chorley Borough Council,http://statistics.data.gov.uk/id/local-authority/30UE,Capital,Capital,Business Development & Growth,Other Capital Related Fees,3024,Capital Expenditure,Capital,Primrose Gardens May 2017,12/07/2017,121618,"4,522.32",Capital,Perfect Circle JV Ltd,76438
Chorley Borough Council,http://statistics.data.gov.uk/id/local-authority/30UE,Capital,Capital,Business Development & Growth,Other Capital Related Fees,3024,Capital Expenditure,Capital,Primrose Gardens June 2017,12/07/2017,122402,"3,121.38",Capital,Perfect Circle JV Ltd,76438
Chorley Borough Council,http://statistics.data.gov.uk/id/local-authority/30UE,Capital,Capital,Business Development & Growth,Other Capital Related Fees,3024,Capital Expenditure,Capital,Primrose Gardens June 2017,12/07/2017,122403,"4,522.32",Capital,Perfect Circle JV Ltd,76438
Chorley Borough Council,http://statistics.data.gov.uk/id/local-authority/30UE,Development Control,1091,Customer & Digital,Refunds,40220,Miscellaneous Expenses,5034,overpyament,05/07/2017,122082,305.00,Revenue,Peter E Gilkes & Co,17634
Chorley Borough Council,http://statistics.data.gov.uk/id/local-authority/30UE,Capital,Capital,Policy & Governance,Main Contractor,3007,Capital Expenditure,Capital,Works at Astley Hall Newel Posts to Stairs : 3168.98 Over Mantle : 2299.72 Morning Room : 8128.42 Moving Furniture : 236.40 Survey,26/07/2017,122855,"6,773.68",Capital,Peter Hall and Son Limited,62741
Chorley Borough Council,http://statistics.data.gov.uk/id/local-authority/30UE,Capital,Capital,Policy & Governance,Main Contractor,3007,Capital Expenditure,Capital,Works at Astley Hall Newel Posts to Stairs : 3168.98 Over Mantle : 2299.72 Morning Room : 8128.42 Moving Furniture : 236.40 Survey,26/07/2017,122857,"2,640.82",Capital,Peter Hall and Son Limited,62741
Chorley Borough Council,http://statistics.data.gov.uk/id/local-authority/30UE,Capital,Capital,Policy & Governance,Main Contractor,3007,Capital Expenditure,Capital,Works at Astley Hall Newel Posts to Stairs : 3168.98 Over Mantle : 2299.72 Morning Room : 8128.42 Moving Furniture : 236.40 Survey,26/07/2017,122858,"1,916.43",Capital,Peter Hall and Son Limited,62741
Chorley Borough Council,http://statistics.data.gov.uk/id/local-authority/30UE,Central Support Services,1009,Early Intervention,External Contractor,40198,Miscellaneous Expenses,5034,Pest Control Duties within Chorley Council,05/07/2017,122263,340.00,Revenue,Peter L Johnson,16727
Chorley Borough Council,http://statistics.data.gov.uk/id/local-authority/30UE,Central Support Services,1009,Early Intervention,External Contractor,40198,Miscellaneous Expenses,5034,Pest Control Duties within Chorley Council,14/07/2017,122485,340.00,Revenue,Peter L Johnson,16727
Chorley Borough Council,http://statistics.data.gov.uk/id/local-authority/30UE,Central Support Services,1009,Early Intervention,External Contractor,40198,Miscellaneous Expenses,5034,Pest Control Duties within Chorley Council,14/07/2017,122647,340.00,Revenue,Peter L Johnson,16727
Chorley Borough Council,http://statistics.data.gov.uk/id/local-authority/30UE,Capital,Capital,Customer & Digital,Consultants Fees,3025,Capital Expenditure,Capital,"Project management services for market walk - 111,384 over an 18 month period",07/07/2017,122380,"5,408.00",Capital,Pick Everard,76515
Chorley Borough Council,http://statistics.data.gov.uk/id/local-authority/30UE,Capital,Capital,Customer & Digital,Consultants Fees,3025,Capital Expenditure,Capital,"Quantity surveying services for market walk - 43,056 over an 18 month period",07/07/2017,122385,"2,704.00",Capital,Pick Everard,76515
Chorley Borough Council,http://statistics.data.gov.uk/id/local-authority/30UE,Corporate Management,1008,Customer & Digital,Printing,40043,"Printing, Stationery & General",5026,Print and supply 371 garden waste stickers and letters as details in e-mail from NAME REDACTED of 21 June 2017.  To be collected and,12/07/2017,122448,580.00,Revenue,Pioneer Print Solutions,76681
Chorley Borough Council,http://statistics.data.gov.uk/id/local-authority/30UE,Unapportionable Central OHeads,1009,Policy & Governance,Publicity - Advertising,40157,Miscellaneous Expenses,5034,1x 4000mm x 2500mm mesh banner,07/07/2017,122067,271.26,Revenue,Poppy Signs Ltd,21898
Chorley Borough Council,http://statistics.data.gov.uk/id/local-authority/30UE,Unapportionable Central OHeads,1009,Policy & Governance,Publicity - Advertising,40157,Miscellaneous Expenses,5034,Banners for the Lancastrian,12/07/2017,122525,"1,596.22",Revenue,Poppy Signs Ltd,21898
Chorley Borough Council,http://statistics.data.gov.uk/id/local-authority/30UE,Unapportionable Central OHeads,1009,Policy & Governance,Exhibitions & Special Events,40158,Miscellaneous Expenses,5034,2 x Mesh Banners for Food event,12/07/2017,122526,362.87,Revenue,Poppy Signs Ltd,21898
Chorley Borough Council,http://statistics.data.gov.uk/id/local-authority/30UE,Parking Services,1066,Business Development & Growth,Miscellaneous Expenses,40200,Miscellaneous Expenses,5034,"As per quote REF9089/1  Batch of 4 mesh banners - size, style and finish as per the original Flat Iron banners. Larger Double size Remove 4 ",12/07/2017,122595,993.72,Revenue,Poppy Signs Ltd,21898
Chorley Borough Council,http://statistics.data.gov.uk/id/local-authority/30UE,Capital,Capital,Business Development & Growth,Other Materials,3017,Capital Expenditure,Capital,1nr play area sign for Osborne Drive - holes in four corners to attach to wooden fencing 2nr play area signs for Jubilee Rec Toddler Play with,28/07/2017,122623,86.43,Capital,Poppy Signs Ltd,21898
Chorley Borough Council,http://statistics.data.gov.uk/id/local-authority/30UE,Capital,Capital,Business Development & Growth,Other Materials,3017,Capital Expenditure,Capital,1nr play area sign for Osborne Drive - holes in four corners to attach to wooden fencing 2nr play area signs for Jubilee Rec Toddler Play with,28/07/2017,122623,178.66,Capital,Poppy Signs Ltd,21898
Chorley Borough Council,http://statistics.data.gov.uk/id/local-authority/30UE,Democratic Represent and  Mgnt,1007,Business Development & Growth,Signs:Provision & Maintenance,20065,Grounds Maintenance Costs,5013,1nr play area sign for Osborne Drive - holes in four corners to attach to wooden fencing 2nr play area signs for Jubilee Rec Toddler Play with,28/07/2017,122623,97.77,Revenue,Poppy Signs Ltd,21898
Chorley Borough Council,http://statistics.data.gov.uk/id/local-authority/30UE,Unapportionable Central OHeads,1009,Policy & Governance,HR Approved Training Expenses,17001,Indirect Employee Expenses,5002,Creativity and Versatility Training 30/06/17,05/07/2017,122270,495.00,Revenue,Potential Unearthed,22243
Chorley Borough Council,http://statistics.data.gov.uk/id/local-authority/30UE,Unapportionable Central OHeads,1009,Policy & Governance,Photocopier Consumables,40049,"Printing, Stationery & General",5026,EVE2180 Everyday A4 80gms,26/07/2017,122264,454.00,Revenue,Premier Paper Group,54451
Chorley Borough Council,http://statistics.data.gov.uk/id/local-authority/30UE,Unapportionable Central OHeads,1009,Policy & Governance,Photocopier Consumables,40049,"Printing, Stationery & General",5026,EVE4280 Everyday A3 80gms,26/07/2017,122264,23.08,Revenue,Premier Paper Group,54451
Chorley Borough Council,http://statistics.data.gov.uk/id/local-authority/30UE,Tourism,1039,Policy & Governance,Professional Fees,40063,Services,5027,Guest Appearance of NAME REDACTED at Chorley Flower Show (Deposit),21/07/2017,122757,"2,250.00",Revenue,Prime Performers Limited,70499
Chorley Borough Council,http://statistics.data.gov.uk/id/local-authority/30UE,Tourism,1039,Policy & Governance,Professional Fees,40063,Services,5027,Guest Appearance of NAME REDACTED at Chorley Flower Show (Balance),21/07/2017,122757,"2,250.00",Revenue,Prime Performers Limited,70499
Chorley Borough Council,http://statistics.data.gov.uk/id/local-authority/30UE,Tourism,1039,Policy & Governance,Professional Fees,40063,Services,5027,Guest Appearance of NAME READCTED at Chorley Flower Show (Deposit),21/07/2017,122758,"1,875.00",Revenue,Prime Performers Limited,70499
Chorley Borough Council,http://statistics.data.gov.uk/id/local-authority/30UE,Tourism,1039,Policy & Governance,Professional Fees,40063,Services,5027,Guest Appearance of NAME REDACTED at Chorley Flower Show (Balance),21/07/2017,122758,"1,875.00",Revenue,Prime Performers Limited,70499
Chorley Borough Council,http://statistics.data.gov.uk/id/local-authority/30UE,Elections,1012,Policy & Governance,Printing,40043,"Printing, Stationery & General",5026,24110 parliamentary postal vote packs,05/07/2017,122349,"15,339.00",Revenue,Print Image Network,21171
Chorley Borough Council,http://statistics.data.gov.uk/id/local-authority/30UE,Service Management & Support,1009,Customer & Digital,Supplies-Grounds Maintenance,40025,"Equipment, Furniture & Materia",5023,500m2 turf,05/07/2017,122272,825.00,Revenue,R H F Turf,17990
Chorley Borough Council,http://statistics.data.gov.uk/id/local-authority/30UE,Business Support,1095,Business Development & Growth,Miscellaneous Expenses,40200,Miscellaneous Expenses,5034,"Rentokil service for market walk including- pests x 8 visits per annum, MyLearning SME (FREE) MyRentokil Lite (FREE)",05/07/2017,122176,315.00,Revenue,Rentokil,76639
Chorley Borough Council,http://statistics.data.gov.uk/id/local-authority/30UE,Building Control,1090,Customer & Digital,General Subscriptions,40146,Grants and Subscriptions,5031,Submit-a-Plan annual subscription,19/07/2017,122650,695.00,Revenue,Resolution Data Management Ltd,48223
Chorley Borough Council,http://statistics.data.gov.uk/id/local-authority/30UE,Control Accounts,Control,Policy & Governance,General Balances,100,Balance Sheet,Balance,childcare vouchers,20/07/2017,122508,"4,688.84",Revenue,Reward Gateway (UK) Ltd,66814
Chorley Borough Council,http://statistics.data.gov.uk/id/local-authority/30UE,Capital,Capital,Business Development & Growth,Consultants Fees,3025,Capital Expenditure,Capital,Value Engineering Exercise,26/07/2017,122873,"1,318.75",Capital,Rider Levett Bucknall,67527
Chorley Borough Council,http://statistics.data.gov.uk/id/local-authority/30UE,Elections,1012,Policy & Governance,Postages,40082,Communication and Computing,5028,2nd issue of postal votes UKPE plus 1411 mailings from first issue not invoiced,07/07/2017,122348,"1,506.07",Revenue,Royal Mail Group Plc,17522
Chorley Borough Council,http://statistics.data.gov.uk/id/local-authority/30UE,Elections,1012,Policy & Governance,Postages,40082,Communication and Computing,5028,Postal vote returns for UKPE 8 June 2017 business reply RXAE-GAEJ-REXJ,19/07/2017,122760,"2,172.90",Revenue,Royal Mail Group Plc,17522
Chorley Borough Council,http://statistics.data.gov.uk/id/local-authority/30UE,Tourism,1039,Policy & Governance,Tools & Equipment - Hire,40004,"Equipment, Furniture & Materia",5023,For the provision on hire of floral staging equipment and services to Chorley Borough Council.,12/07/2017,122535,"4,000.00",Revenue,RPM Events,70613
Chorley Borough Council,http://statistics.data.gov.uk/id/local-authority/30UE,Central Support Services,1009,Early Intervention,Children's Activities,40188,Miscellaneous Expenses,5034,Entry to cost for RUAG to Sandcastle Waterpark Blackpool for 12 young people and 5 members of staff for Saturday 15th July.,07/07/2017,122367,284.75,Revenue,Sandcastle Water Park,76588
Chorley Borough Council,http://statistics.data.gov.uk/id/local-authority/30UE,Homelessness,1075,Early Intervention,External Contractor,40198,Miscellaneous Expenses,5034,"For Concierge Service at Cotswold Supported Housing, Cotswold Road, Chorley, PR7 3HW. This is for the period of April 2017 to March 2018",05/07/2017,122200,"2,337.95",Revenue,Sector Security Services,19269
Chorley Borough Council,http://statistics.data.gov.uk/id/local-authority/30UE,Business Support,1095,Business Development & Growth,Security Service,40062,Services,5027,To provide security services to Market Walk Shopping Centre from April 2017 to March 2018. @5809.40 per month - Contract No. 754775,26/07/2017,122889,"5,809.40",Revenue,Securitas Security Services (UK) Ltd,70693
Chorley Borough Council,http://statistics.data.gov.uk/id/local-authority/30UE,Business Support,1095,Business Development & Growth,Grants To Other Organisations,40127,Grants and Subscriptions,5031,big grant,05/07/2017,122234,"3,000.00",Revenue,Sharples Davies Ltd,76698
Chorley Borough Council,http://statistics.data.gov.uk/id/local-authority/30UE,Central Support Services,1009,Customer & Digital,Computer Equipment-Purchase,40098,Communication and Computing,5028,invoice with vatl to replace 1231,05/07/2017,122265,984.58,Revenue,Shine-Mart Ltd,61253
Chorley Borough Council,http://statistics.data.gov.uk/id/local-authority/30UE,Economic Development,1096,Business Development & Growth,Miscellaneous Expenses,40200,Miscellaneous Expenses,5034,For membership of Shout network 2017/18,05/07/2017,121771,445.00,Revenue,Shout Network Limited,69551
Chorley Borough Council,http://statistics.data.gov.uk/id/local-authority/30UE,Central Support Services,1009,Policy & Governance,Miscellaneous Expenses,40200,Miscellaneous Expenses,5034,Film and produce a promotional video to encourage visitors to Chorley as part of the check out Chorley campaign,05/07/2017,121506,850.00,Revenue,SkyOptics Ltd,76623
Chorley Borough Council,http://statistics.data.gov.uk/id/local-authority/30UE,Unapportionable Central OHeads,1009,Policy & Governance,Miscellaneous Expenses,40200,Miscellaneous Expenses,5034,Film and produce a promotional video to encourage visitors to Chorley as part of the check out Chorley campaign,26/07/2017,122201,850.00,Revenue,SkyOptics Ltd,76623
Chorley Borough Council,http://statistics.data.gov.uk/id/local-authority/30UE,Service Management & Support,1009,Customer & Digital,Protective Clothing,40040,"Clothing, Uniforms and Laundry",5025,"Pulsar P421 Unlined Storm Jacket	as per quote fro NAME REDACTED @ 46.45 Size = XL",05/07/2017,122269,92.90,Revenue,Smart Image Workwear,21064
Chorley Borough Council,http://statistics.data.gov.uk/id/local-authority/30UE,Service Management & Support,1009,Customer & Digital,Protective Clothing,40040,"Clothing, Uniforms and Laundry",5025,"Pulsar P421 Unlined Storm Jacket	as per quote fro NAME REDACTED @ 46.45 Size = L",05/07/2017,122269,46.45,Revenue,Smart Image Workwear,21064
Chorley Borough Council,http://statistics.data.gov.uk/id/local-authority/30UE,Service Management & Support,1009,Customer & Digital,Protective Clothing,40040,"Clothing, Uniforms and Laundry",5025,Pulsar P206 Unlined Overtrouser  as per quote from NAME REDACTED @ 23.60 Size = XL,05/07/2017,122269,47.20,Revenue,Smart Image Workwear,21064
Chorley Borough Council,http://statistics.data.gov.uk/id/local-authority/30UE,Service Management & Support,1009,Customer & Digital,Protective Clothing,40040,"Clothing, Uniforms and Laundry",5025,Pulsar P206 Unlined Overtrouser  as per quote from NAME REDACTED @ 23.60 Size = L,05/07/2017,122269,47.20,Revenue,Smart Image Workwear,21064
Chorley Borough Council,http://statistics.data.gov.uk/id/local-authority/30UE,Service Management & Support,1009,Customer & Digital,Protective Clothing,40040,"Clothing, Uniforms and Laundry",5025,Pulsar P206 Unlined Overtrouser  as per quote from NAME REDACTED @ 23.60 Size = M,05/07/2017,122269,47.20,Revenue,Smart Image Workwear,21064
Chorley Borough Council,http://statistics.data.gov.uk/id/local-authority/30UE,Service Management & Support,1009,Customer & Digital,Supplies-Grounds Maintenance,40025,"Equipment, Furniture & Materia",5023,150 No Waiting cones,26/07/2017,122786,952.50,Revenue,Smart Image Workwear,21064
Chorley Borough Council,http://statistics.data.gov.uk/id/local-authority/30UE,Central Support Services,1009,Early Intervention,Miscellaneous Expenses,40200,Miscellaneous Expenses,5034,Mediation Service for Howat � Burckhardt (ADDRESS REDACTED),19/07/2017,122625,650.00,Revenue,Smile Mediation Ltd,62536
Chorley Borough Council,http://statistics.data.gov.uk/id/local-authority/30UE,Service Management & Support,1009,Customer & Digital,Supplies-Grounds Maintenance,40025,"Equipment, Furniture & Materia",5023,Garden Digging Spade.  Product Code = 30807,05/07/2017,122257,82.50,Revenue,Spalding (UK) Limited,20264
Chorley Borough Council,http://statistics.data.gov.uk/id/local-authority/30UE,Service Management & Support,1009,Customer & Digital,Supplies-Grounds Maintenance,40025,"Equipment, Furniture & Materia",5023,Spaldings Garden Hoe (Dutch Hoe) 5``  Product Code = 27207,05/07/2017,122257,65.00,Revenue,Spalding (UK) Limited,20264
Chorley Borough Council,http://statistics.data.gov.uk/id/local-authority/30UE,Service Management & Support,1009,Customer & Digital,Supplies-Grounds Maintenance,40025,"Equipment, Furniture & Materia",5023,Spaldings Hand Trowel.  Product Code = 09320,05/07/2017,122257,27.00,Revenue,Spalding (UK) Limited,20264
Chorley Borough Council,http://statistics.data.gov.uk/id/local-authority/30UE,Service Management & Support,1009,Customer & Digital,Supplies-Grounds Maintenance,40025,"Equipment, Furniture & Materia",5023,Long Handled Border Shears.  Product Code = 21035,05/07/2017,122257,70.00,Revenue,Spalding (UK) Limited,20264
Chorley Borough Council,http://statistics.data.gov.uk/id/local-authority/30UE,Service Management & Support,1009,Customer & Digital,Supplies-Grounds Maintenance,40025,"Equipment, Furniture & Materia",5023,Long Handled By Pass Loppers.  Product Code = 21037,05/07/2017,122257,55.00,Revenue,Spalding (UK) Limited,20264
Chorley Borough Council,http://statistics.data.gov.uk/id/local-authority/30UE,Service Management & Support,1009,Customer & Digital,Supplies-Grounds Maintenance,40025,"Equipment, Furniture & Materia",5023,Bow Saw 21`` BACHO.  Product Code = 21254,05/07/2017,122257,48.10,Revenue,Spalding (UK) Limited,20264
Chorley Borough Council,http://statistics.data.gov.uk/id/local-authority/30UE,Elections,1012,Policy & Governance,Rent/Hire Of Premises,20017,Premises Rents,5007,Room Hire for polling station 4 May 2017 LCC Election and 8 June 2017 UKPE,14/07/2017,122660,350.00,Revenue,St Barnabas PCC,57168
Chorley Borough Council,http://statistics.data.gov.uk/id/local-authority/30UE,Corporate Management,1008,Policy & Governance,Other Contributions,40145,Grants and Subscriptions,5031,Provision of temporary 7C bus service extended period,12/07/2017,122483,"7,758.37",Revenue,Stagecoach Services Limited,18598
Chorley Borough Council,http://statistics.data.gov.uk/id/local-authority/30UE,Capital,Capital,Business Development & Growth,Other Capital Related Fees,3024,Capital Expenditure,Capital,Provision of Public Realm & Highway Design Engineering services as per contract for a period of 30 months from w/c 5th June 2017.  Invoiced ,12/07/2017,122446,"2,700.00",Capital,Street Civil Engineering Limited,76750
Chorley Borough Council,http://statistics.data.gov.uk/id/local-authority/30UE,Capital,Capital,Business Development & Growth,Main Contractor,3007,Capital Expenditure,Capital,ADDRESS REDACTED,12/07/2017,121727,"7,295.00",Capital,Stringfellow Bldg Cntrctrs Ltd,17893
Chorley Borough Council,http://statistics.data.gov.uk/id/local-authority/30UE,Economic Development,1096,Business Development & Growth,Fixtures & Fittings - Repair/Mtnce,20028,Fixtures and Fittings,5010,"To carry out the following works as per quote reference CC114 To access the various roof slopes, clean out the valley gutters and fit bird",05/07/2017,122156,650.00,Revenue,Stringfellow Bldg Cntrctrs Ltd,17893
Chorley Borough Council,http://statistics.data.gov.uk/id/local-authority/30UE,Unapportionable Central OHeads,1009,Business Development & Growth,General Repairs - Reactive,20004,Repairs Maintenance & Alts,5005,Reactive Repairs to end of March 2017,12/07/2017,122159,260.75,Revenue,Stringfellow Bldg Cntrctrs Ltd,17893
Chorley Borough Council,http://statistics.data.gov.uk/id/local-authority/30UE,Capital,Capital,Business Development & Growth,Main Contractor,3007,Capital Expenditure,Capital,General building Work At Union Street,07/07/2017,122311,"10,500.00",Capital,Stringfellow Bldg Cntrctrs Ltd,17893
Chorley Borough Council,http://statistics.data.gov.uk/id/local-authority/30UE,Unapportionable Central OHeads,1009,Business Development & Growth,General Repairs - Reactive,20004,Repairs Maintenance & Alts,5005,Blanket order for reactive repairs from June 2017,26/07/2017,122468,321.73,Revenue,Stringfellow Bldg Cntrctrs Ltd,17893
Chorley Borough Council,http://statistics.data.gov.uk/id/local-authority/30UE,Unapportionable Central OHeads,1009,Business Development & Growth,General Repairs - Reactive,20004,Repairs Maintenance & Alts,5005,Blanket order for reactive repairs from June 2017,26/07/2017,122477,273.46,Revenue,Stringfellow Bldg Cntrctrs Ltd,17893
Chorley Borough Council,http://statistics.data.gov.uk/id/local-authority/30UE,Unapportionable Central OHeads,1009,Policy & Governance,Miscellaneous Expenses,40200,Miscellaneous Expenses,5034,Installation of shower facility at Astley hall,28/07/2017,122994,"2,100.00",Revenue,Stringfellow Bldg Cntrctrs Ltd,17893
Chorley Borough Council,http://statistics.data.gov.uk/id/local-authority/30UE,Unapportionable Central OHeads,1009,Policy & Governance,Miscellaneous Expenses,40200,Miscellaneous Expenses,5034,Work for permanent water and electric supply in Astley park,28/07/2017,122995,"7,880.00",Revenue,Stringfellow Bldg Cntrctrs Ltd,17893
Chorley Borough Council,http://statistics.data.gov.uk/id/local-authority/30UE,Capital,Capital,Business Development & Growth,Main Contractor,3007,Capital Expenditure,Capital,credited,30/06/2017,123000,"4,500.00",Capital,Stringfellow Bldg Cntrctrs Ltd,17893
Chorley Borough Council,http://statistics.data.gov.uk/id/local-authority/30UE,Unapportionable Central OHeads,1009,Policy & Governance,Cleaning Materials,40019,"Equipment, Furniture & Materia",5023,EVER Everfresh Evens toilet cleaner apple 5L 3.38 per container QTY 3 boxes,19/07/2017,122144,20.28,Revenue,Swiftkleen Ltd,17933
Chorley Borough Council,http://statistics.data.gov.uk/id/local-authority/30UE,Unapportionable Central OHeads,1009,Policy & Governance,Cleaning Materials,40019,"Equipment, Furniture & Materia",5023,TB Atlas thick bleach 5ltr QTY 4 boxes @ 1.55 per container,19/07/2017,122144,12.40,Revenue,Swiftkleen Ltd,17933
Chorley Borough Council,http://statistics.data.gov.uk/id/local-authority/30UE,Unapportionable Central OHeads,1009,Policy & Governance,Cleaning Materials,40019,"Equipment, Furniture & Materia",5023,HSC hard surface cleaner 5litre QTY 4 containers  at 5.28 each,19/07/2017,122144,17.96,Revenue,Swiftkleen Ltd,17933
Chorley Borough Council,http://statistics.data.gov.uk/id/local-authority/30UE,Unapportionable Central OHeads,1009,Policy & Governance,Cleaning Materials,40019,"Equipment, Furniture & Materia",5023,BLU Evans High Active Washing up Liquid/Detergent 5 litre PH Neutral 3.26 QTY 4,19/07/2017,122144,13.04,Revenue,Swiftkleen Ltd,17933
Chorley Borough Council,http://statistics.data.gov.uk/id/local-authority/30UE,Unapportionable Central OHeads,1009,Policy & Governance,Cleaning Materials,40019,"Equipment, Furniture & Materia",5023,TR320 soft toilet rolls QTY 10 packs @ 36/pack at 5.50 per box,19/07/2017,122144,55.00,Revenue,Swiftkleen Ltd,17933
Chorley Borough Council,http://statistics.data.gov.uk/id/local-authority/30UE,Unapportionable Central OHeads,1009,Policy & Governance,Cleaning Materials,40019,"Equipment, Furniture & Materia",5023,05SSMJ Mini Jumbo QTY 20 packs 12/pack @ 6.65 per pack,19/07/2017,122144,172.20,Revenue,Swiftkleen Ltd,17933
Chorley Borough Council,http://statistics.data.gov.uk/id/local-authority/30UE,Unapportionable Central OHeads,1009,Policy & Governance,Cleaning Materials,40019,"Equipment, Furniture & Materia",5023,Paper towels 3600 green 1 fold QTY 20 boxes 10.10 per box,19/07/2017,122144,202.00,Revenue,Swiftkleen Ltd,17933
Chorley Borough Council,http://statistics.data.gov.uk/id/local-authority/30UE,Unapportionable Central OHeads,1009,Policy & Governance,Cleaning Materials,40019,"Equipment, Furniture & Materia",5023,39BBL Black bin liners QTY 10 boxes 11.70 per box,19/07/2017,122144,117.00,Revenue,Swiftkleen Ltd,17933
Chorley Borough Council,http://statistics.data.gov.uk/id/local-authority/30UE,Unapportionable Central OHeads,1009,Policy & Governance,Cleaning Materials,40019,"Equipment, Furniture & Materia",5023,ESBL economy white bin liners QTY 2 boxes at 10.73 per box,19/07/2017,122144,20.00,Revenue,Swiftkleen Ltd,17933
Chorley Borough Council,http://statistics.data.gov.uk/id/local-authority/30UE,Unapportionable Central OHeads,1009,Policy & Governance,Cleaning Materials,40019,"Equipment, Furniture & Materia",5023,SAF Stand up air freshener 12 per case and 3.36 per case QTY 1 case,19/07/2017,122144,3.36,Revenue,Swiftkleen Ltd,17933
Chorley Borough Council,http://statistics.data.gov.uk/id/local-authority/30UE,Economic Development,1096,Business Development & Growth,Cleaning Materials,40019,"Equipment, Furniture & Materia",5023,Please supply order as per e-mail,07/07/2017,122386,280.65,Revenue,Swiftkleen Ltd,17933
Chorley Borough Council,http://statistics.data.gov.uk/id/local-authority/30UE,Homelessness,1075,Early Intervention,Tools & Equipment - Purchase,40003,"Equipment, Furniture & Materia",5023,Hard Surface Cleaner - 5 Litre,28/07/2017,122820,7.08,Revenue,Swiftkleen Ltd,17933
Chorley Borough Council,http://statistics.data.gov.uk/id/local-authority/30UE,Homelessness,1075,Early Intervention,Tools & Equipment - Purchase,40003,"Equipment, Furniture & Materia",5023,Oven Cleaner 5ltr,28/07/2017,122820,10.72,Revenue,Swiftkleen Ltd,17933
Chorley Borough Council,http://statistics.data.gov.uk/id/local-authority/30UE,Homelessness,1075,Early Intervention,Tools & Equipment - Purchase,40003,"Equipment, Furniture & Materia",5023,Washing up liquid 5 litre,28/07/2017,122820,6.52,Revenue,Swiftkleen Ltd,17933
Chorley Borough Council,http://statistics.data.gov.uk/id/local-authority/30UE,Homelessness,1075,Early Intervention,Tools & Equipment - Purchase,40003,"Equipment, Furniture & Materia",5023,"Evans Vanodine Everfresh, Perfumed thickened toilet cleaner - 5 litre",28/07/2017,122820,3.38,Revenue,Swiftkleen Ltd,17933
Chorley Borough Council,http://statistics.data.gov.uk/id/local-authority/30UE,Homelessness,1075,Early Intervention,Tools & Equipment - Purchase,40003,"Equipment, Furniture & Materia",5023,"Evans Vanodine Trigon, Hand Soap, Un-perfumed 5ltr",28/07/2017,122820,16.56,Revenue,Swiftkleen Ltd,17933
Chorley Borough Council,http://statistics.data.gov.uk/id/local-authority/30UE,Homelessness,1075,Early Intervention,Tools & Equipment - Purchase,40003,"Equipment, Furniture & Materia",5023,Blue Nitrile disposable gloves (Medium),28/07/2017,122820,5.90,Revenue,Swiftkleen Ltd,17933
Chorley Borough Council,http://statistics.data.gov.uk/id/local-authority/30UE,Homelessness,1075,Early Intervention,Tools & Equipment - Purchase,40003,"Equipment, Furniture & Materia",5023,Stand-up Long Life Gel Air Freshener (any fragrance) - Case of 12,28/07/2017,122820,6.72,Revenue,Swiftkleen Ltd,17933
Chorley Borough Council,http://statistics.data.gov.uk/id/local-authority/30UE,Homelessness,1075,Early Intervention,Tools & Equipment - Purchase,40003,"Equipment, Furniture & Materia",5023,Glade Vacuum Fresh fragrance sachets - pack of 3,28/07/2017,122820,1.76,Revenue,Swiftkleen Ltd,17933
Chorley Borough Council,http://statistics.data.gov.uk/id/local-authority/30UE,Homelessness,1075,Early Intervention,Tools & Equipment - Purchase,40003,"Equipment, Furniture & Materia",5023,Numatic Heppaflow Vac Bag for Henry Vacuum,28/07/2017,122820,8.36,Revenue,Swiftkleen Ltd,17933
Chorley Borough Council,http://statistics.data.gov.uk/id/local-authority/30UE,Homelessness,1075,Early Intervention,Tools & Equipment - Purchase,40003,"Equipment, Furniture & Materia",5023,Mop head (red),28/07/2017,122820,4.90,Revenue,Swiftkleen Ltd,17933
Chorley Borough Council,http://statistics.data.gov.uk/id/local-authority/30UE,Homelessness,1075,Early Intervention,Tools & Equipment - Purchase,40003,"Equipment, Furniture & Materia",5023,Mop pole( Red),28/07/2017,122820,18.85,Revenue,Swiftkleen Ltd,17933
Chorley Borough Council,http://statistics.data.gov.uk/id/local-authority/30UE,Homelessness,1075,Early Intervention,Tools & Equipment - Purchase,40003,"Equipment, Furniture & Materia",5023,Soft Brush Head (red),28/07/2017,122820,10.40,Revenue,Swiftkleen Ltd,17933
Chorley Borough Council,http://statistics.data.gov.uk/id/local-authority/30UE,Homelessness,1075,Early Intervention,Tools & Equipment - Purchase,40003,"Equipment, Furniture & Materia",5023,Brush Handle (RED),28/07/2017,122820,11.70,Revenue,Swiftkleen Ltd,17933
Chorley Borough Council,http://statistics.data.gov.uk/id/local-authority/30UE,Homelessness,1075,Early Intervention,Tools & Equipment - Purchase,40003,"Equipment, Furniture & Materia",5023,"Colour coded Dust Pan and Brush Set, Soft",28/07/2017,122820,6.00,Revenue,Swiftkleen Ltd,17933
Chorley Borough Council,http://statistics.data.gov.uk/id/local-authority/30UE,Homelessness,1075,Early Intervention,Tools & Equipment - Purchase,40003,"Equipment, Furniture & Materia",5023,Toilet Brush & Holder - Open,28/07/2017,122820,5.70,Revenue,Swiftkleen Ltd,17933
Chorley Borough Council,http://statistics.data.gov.uk/id/local-authority/30UE,Homelessness,1075,Early Intervention,Tools & Equipment - Purchase,40003,"Equipment, Furniture & Materia",5023,Colour Coded Mop Bucket - Red,28/07/2017,122820,16.50,Revenue,Swiftkleen Ltd,17933
Chorley Borough Council,http://statistics.data.gov.uk/id/local-authority/30UE,Homelessness,1075,Early Intervention,Tools & Equipment - Purchase,40003,"Equipment, Furniture & Materia",5023,"Ramon, Dishcloths 12``x16`` (30cm x 40cm) Pack of 10, bleached white (ANY COLOUR)",28/07/2017,122820,1.38,Revenue,Swiftkleen Ltd,17933
Chorley Borough Council,http://statistics.data.gov.uk/id/local-authority/30UE,Homelessness,1075,Early Intervention,Tools & Equipment - Purchase,40003,"Equipment, Furniture & Materia",5023,"Evans Vanodine Clear, Glass and Mirror Cleaner 5 Litre",28/07/2017,122820,4.36,Revenue,Swiftkleen Ltd,17933
Chorley Borough Council,http://statistics.data.gov.uk/id/local-authority/30UE,Homelessness,1075,Early Intervention,Tools & Equipment - Purchase,40003,"Equipment, Furniture & Materia",5023,Dinner Plate,28/07/2017,122820,12.00,Revenue,Swiftkleen Ltd,17933
Chorley Borough Council,http://statistics.data.gov.uk/id/local-authority/30UE,Homelessness,1075,Early Intervention,Tools & Equipment - Purchase,40003,"Equipment, Furniture & Materia",5023,Cereal Bowl,28/07/2017,122820,13.08,Revenue,Swiftkleen Ltd,17933
Chorley Borough Council,http://statistics.data.gov.uk/id/local-authority/30UE,Homelessness,1075,Early Intervention,Tools & Equipment - Purchase,40003,"Equipment, Furniture & Materia",5023,Side Plate,28/07/2017,122820,12.00,Revenue,Swiftkleen Ltd,17933
Chorley Borough Council,http://statistics.data.gov.uk/id/local-authority/30UE,Homelessness,1075,Early Intervention,Tools & Equipment - Purchase,40003,"Equipment, Furniture & Materia",5023,Basic Metal Pans - Box of 3,28/07/2017,122820,29.92,Revenue,Swiftkleen Ltd,17933
Chorley Borough Council,http://statistics.data.gov.uk/id/local-authority/30UE,Homelessness,1075,Early Intervention,Tools & Equipment - Purchase,40003,"Equipment, Furniture & Materia",5023,Chopping board (white),28/07/2017,122820,19.00,Revenue,Swiftkleen Ltd,17933
Chorley Borough Council,http://statistics.data.gov.uk/id/local-authority/30UE,Homelessness,1075,Early Intervention,Tools & Equipment - Purchase,40003,"Equipment, Furniture & Materia",5023,Frying pan 28cm,28/07/2017,122820,14.36,Revenue,Swiftkleen Ltd,17933
Chorley Borough Council,http://statistics.data.gov.uk/id/local-authority/30UE,Homelessness,1075,Early Intervention,Tools & Equipment - Purchase,40003,"Equipment, Furniture & Materia",5023,Cheese Grater,28/07/2017,122820,14.64,Revenue,Swiftkleen Ltd,17933
Chorley Borough Council,http://statistics.data.gov.uk/id/local-authority/30UE,Homelessness,1075,Early Intervention,Tools & Equipment - Purchase,40003,"Equipment, Furniture & Materia",5023,Fish slice,28/07/2017,122820,2.16,Revenue,Swiftkleen Ltd,17933
Chorley Borough Council,http://statistics.data.gov.uk/id/local-authority/30UE,Homelessness,1075,Early Intervention,Tools & Equipment - Purchase,40003,"Equipment, Furniture & Materia",5023,Slotted spoon,28/07/2017,122820,4.32,Revenue,Swiftkleen Ltd,17933
Chorley Borough Council,http://statistics.data.gov.uk/id/local-authority/30UE,Homelessness,1075,Early Intervention,Tools & Equipment - Purchase,40003,"Equipment, Furniture & Materia",5023,Potato Peeler,28/07/2017,122820,3.60,Revenue,Swiftkleen Ltd,17933
Chorley Borough Council,http://statistics.data.gov.uk/id/local-authority/30UE,Homelessness,1075,Early Intervention,Tools & Equipment - Purchase,40003,"Equipment, Furniture & Materia",5023,Coffee/Tea Mug,28/07/2017,122820,6.00,Revenue,Swiftkleen Ltd,17933
Chorley Borough Council,http://statistics.data.gov.uk/id/local-authority/30UE,Homelessness,1075,Early Intervention,Tools & Equipment - Purchase,40003,"Equipment, Furniture & Materia",5023,Stainless Steel Dessert Spoon - pack of 12,28/07/2017,122820,4.20,Revenue,Swiftkleen Ltd,17933
Chorley Borough Council,http://statistics.data.gov.uk/id/local-authority/30UE,Homelessness,1075,Early Intervention,Tools & Equipment - Purchase,40003,"Equipment, Furniture & Materia",5023,Quilts Single Bed 10.5 Tog,28/07/2017,122820,109.60,Revenue,Swiftkleen Ltd,17933
Chorley Borough Council,http://statistics.data.gov.uk/id/local-authority/30UE,Homelessness,1075,Early Intervention,Tools & Equipment - Purchase,40003,"Equipment, Furniture & Materia",5023,Pillows 2pkt,28/07/2017,122820,22.98,Revenue,Swiftkleen Ltd,17933
Chorley Borough Council,http://statistics.data.gov.uk/id/local-authority/30UE,Homelessness,1075,Early Intervention,Tools & Equipment - Purchase,40003,"Equipment, Furniture & Materia",5023,Black Refuse Sacks 180g (Heavy Duty) pack of 200,28/07/2017,122820,11.70,Revenue,Swiftkleen Ltd,17933
Chorley Borough Council,http://statistics.data.gov.uk/id/local-authority/30UE,Homelessness,1075,Early Intervention,Tools & Equipment - Purchase,40003,"Equipment, Furniture & Materia",5023,"2-Ply Interfold Towels White, 3200 per case",28/07/2017,122820,62.72,Revenue,Swiftkleen Ltd,17933
Chorley Borough Council,http://statistics.data.gov.uk/id/local-authority/30UE,Homelessness,1075,Early Intervention,Tools & Equipment - Purchase,40003,"Equipment, Furniture & Materia",5023,Sirius Mini Jumbo Toilet Rolls 200m x 90mm (Pack of 12),28/07/2017,122820,51.66,Revenue,Swiftkleen Ltd,17933
Chorley Borough Council,http://statistics.data.gov.uk/id/local-authority/30UE,Homelessness,1075,Early Intervention,Tools & Equipment - Purchase,40003,"Equipment, Furniture & Materia",5023,Non-Biological Washing Powder 10kg - 100 washes,28/07/2017,122820,8.30,Revenue,Swiftkleen Ltd,17933
Chorley Borough Council,http://statistics.data.gov.uk/id/local-authority/30UE,Homelessness,1075,Early Intervention,Tools & Equipment - Purchase,40003,"Equipment, Furniture & Materia",5023,Heavy Duty Green Scourers - pack of 10,28/07/2017,122820,2.12,Revenue,Swiftkleen Ltd,17933
Chorley Borough Council,http://statistics.data.gov.uk/id/local-authority/30UE,Homelessness,1075,Early Intervention,Tools & Equipment - Purchase,40003,"Equipment, Furniture & Materia",5023,Rubber Bath Mat none slip (white),28/07/2017,122820,13.60,Revenue,Swiftkleen Ltd,17933
Chorley Borough Council,http://statistics.data.gov.uk/id/local-authority/30UE,Homelessness,1075,Early Intervention,Tools & Equipment - Purchase,40003,"Equipment, Furniture & Materia",5023,"Evans Vanodine Handsan, Alcohol Gel Hand Rub 500ml",28/07/2017,122820,5.00,Revenue,Swiftkleen Ltd,17933
Chorley Borough Council,http://statistics.data.gov.uk/id/local-authority/30UE,Homelessness,1075,Early Intervention,Tools & Equipment - Purchase,40003,"Equipment, Furniture & Materia",5023,Fly spray,28/07/2017,122820,2.24,Revenue,Swiftkleen Ltd,17933
Chorley Borough Council,http://statistics.data.gov.uk/id/local-authority/30UE,Elections,1012,Policy & Governance,Training Course Fees,17010,Indirect Employee Expenses,5002,one delegate (AEA member) - NAME REDACTED -  Elections Accounts 2017 - Preston Wednesday 26 July 2017,07/07/2017,122444,256.00,Revenue,The Association Of Electoral Administrators,16344
Chorley Borough Council,http://statistics.data.gov.uk/id/local-authority/30UE,Elections,1012,Policy & Governance,Training Course Fees,17010,Indirect Employee Expenses,5002,AEA - Certificate Qualification - NAME REDACTED,19/07/2017,122771,"1,585.00",Revenue,The Association Of Electoral Administrators,16344
Chorley Borough Council,http://statistics.data.gov.uk/id/local-authority/30UE,Unapportionable Central OHeads,1009,Policy & Governance,Copyright Licence Fees,40168,Miscellaneous Expenses,5034,"Invoice number 601755 Public Admin Licence, Professional Employees from 01 May 2017 to 30April 2018 Chorley Council",07/07/2017,122387,"1,211.11",Revenue,The Copyright Licensing Agency Ltd,17480
Chorley Borough Council,http://statistics.data.gov.uk/id/local-authority/30UE,Tourism,1039,Policy & Governance,Children's Activities,40188,Miscellaneous Expenses,5034,Deposit for Flower Show arts and crafts,05/07/2017,122284,465.00,Revenue,The Creation Station Merseyside,71522
Chorley Borough Council,http://statistics.data.gov.uk/id/local-authority/30UE,Corporate Management,1008,Policy & Governance,Exhibitions & Special Events,40158,Miscellaneous Expenses,5034,Christmas decorations project for Market Walk,12/07/2017,122486,"1,113.65",Revenue,The Creative Network,61874
Chorley Borough Council,http://statistics.data.gov.uk/id/local-authority/30UE,Unapportionable Central OHeads,1009,Business Development & Growth,Planned Maintenance,20006,Repairs Maintenance & Alts,5005,Blanket ppm order from June 2017,07/07/2017,122303,630.00,Revenue,The Guardian Shutter Co LTD,21769
Chorley Borough Council,http://statistics.data.gov.uk/id/local-authority/30UE,Unapportionable Central OHeads,1009,Business Development & Growth,Planned Maintenance,20006,Repairs Maintenance & Alts,5005,Blanket ppm order from June 2017,07/07/2017,122304,275.00,Revenue,The Guardian Shutter Co LTD,21769
Chorley Borough Council,http://statistics.data.gov.uk/id/local-authority/30UE,Unapportionable Central OHeads,1009,Business Development & Growth,General Repairs - Reactive,20004,Repairs Maintenance & Alts,5005,Blanket  reactive order from Jul 2017,19/07/2017,122305,853.00,Revenue,The Guardian Shutter Co LTD,21769
Chorley Borough Council,http://statistics.data.gov.uk/id/local-authority/30UE,Unapportionable Central OHeads,1009,Business Development & Growth,Planned Maintenance,20006,Repairs Maintenance & Alts,5005,Blanket ppm order from June 2017,07/07/2017,122306,504.00,Revenue,The Guardian Shutter Co LTD,21769
Chorley Borough Council,http://statistics.data.gov.uk/id/local-authority/30UE,Economic Development,1096,Business Development & Growth,Training Course Fees,17010,Indirect Employee Expenses,5002,Prince 2 training,12/07/2017,122203,679.00,Revenue,The Knowledge Academy Limited,72380
Chorley Borough Council,http://statistics.data.gov.uk/id/local-authority/30UE,Central Support Services,1009,Customer & Digital,Consultants` Fees,40077,Services,5027,Cloud Enablement Consultancy,12/07/2017,122531,"5,000.00",Revenue,The Networking People (NorthWest) Ltd T/a TNP Ltd,73446
Chorley Borough Council,http://statistics.data.gov.uk/id/local-authority/30UE,Democratic Represent and  Mgnt,1007,Policy & Governance,Processional Routes,40177,Miscellaneous Expenses,5034,Freedom of the Borough Printing (22-07-17) 200 x Menu Cards 350 x Order of Service,26/07/2017,122822,315.00,Revenue,The Print Quarter,17987
Chorley Borough Council,http://statistics.data.gov.uk/id/local-authority/30UE,Corporate Management,1008,Policy & Governance,Miscellaneous Expenses,40200,Miscellaneous Expenses,5034,Giant Deck Chair - Market Walk,19/07/2017,122204,529.10,Revenue,The Prop Factory Ltd,76772
Chorley Borough Council,http://statistics.data.gov.uk/id/local-authority/30UE,Democratic Represent and  Mgnt,1007,Policy & Governance,Publicity - Advertising,40157,Miscellaneous Expenses,5034,Giant Deck Chair - Astley,19/07/2017,122205,529.10,Revenue,The Prop Factory Ltd,76772
Chorley Borough Council,http://statistics.data.gov.uk/id/local-authority/30UE,Unapportionable Central OHeads,1009,Policy & Governance,Miscellaneous Expenses,40200,Miscellaneous Expenses,5034,Giant Deck Chair,19/07/2017,122206,529.10,Revenue,The Prop Factory Ltd,76772
Chorley Borough Council,http://statistics.data.gov.uk/id/local-authority/30UE,Tourism,1039,Policy & Governance,Publicity - Advertising,40157,Miscellaneous Expenses,5034,Half page advert in Amateur Gardening magazine,26/07/2017,122879,280.00,Revenue,Time Inc (UK) Ltd,70838
Chorley Borough Council,http://statistics.data.gov.uk/id/local-authority/30UE,Service Management & Support,1009,Customer & Digital,Grounds Maintenance Contractor,20043,Grounds Maintenance Costs,5013,Works carried out @ Chorley Cemetery - Fell & Remove Millwood Glade - Thin Copse out,19/07/2017,122663,860.00,Revenue,Treescape North West Ltd,17688
Chorley Borough Council,http://statistics.data.gov.uk/id/local-authority/30UE,Service Management & Support,1009,Customer & Digital,Petrol,30005,Direct Transport Costs,5016,Jun-17,20/07/2017,122248,650.34,Revenue,Uk Fuels Ltd,57996
Chorley Borough Council,http://statistics.data.gov.uk/id/local-authority/30UE,Unapportionable Central OHeads,1009,Policy & Governance,Miscellaneous Expenses,40200,Miscellaneous Expenses,5034,levels 1-5,05/07/2017,122249,"1,564.00",Revenue,UK Healthcare (BDHSC),17241
Chorley Borough Council,http://statistics.data.gov.uk/id/local-authority/30UE,Control Accounts,Control,Policy & Governance,General Balances,100,Balance Sheet,Balance,top ups,05/07/2017,122249,588.63,Revenue,UK Healthcare (BDHSC),17241
Chorley Borough Council,http://statistics.data.gov.uk/id/local-authority/30UE,Unapportionable Central OHeads,1009,Customer & Digital,Service Fees,40056,Services,5027,Daily Hybrid mail & Annual Billing,12/07/2017,122295,963.59,Revenue,UKMAIL Ltd (Mail),57758
Chorley Borough Council,http://statistics.data.gov.uk/id/local-authority/30UE,Unapportionable Central OHeads,1009,Customer & Digital,Service Fees,40056,Services,5027,Daily Hybrid mail & Annual Billing,12/07/2017,122299,"1,156.51",Revenue,UKMAIL Ltd (Mail),57758
Chorley Borough Council,http://statistics.data.gov.uk/id/local-authority/30UE,Elections,1012,Policy & Governance,Rent/Hire Of Premises,20017,Premises Rents,5007,Room Hire for polling station at Ulnes Walton  LCC - 4 May 2017 UKPE - 8 June 2017,07/07/2017,122361,600.00,Revenue,Ulnes Walton Charitable Fund,18424
Chorley Borough Council,http://statistics.data.gov.uk/id/local-authority/30UE,Business Support,1095,Business Development & Growth,Miscellaneous Expenses,40200,Miscellaneous Expenses,5034,For underwriting delinquent Business Loans for start up service.,21/07/2017,122487,"2,639.00",Revenue,Unify Credit Union Ltd,55509
Chorley Borough Council,http://statistics.data.gov.uk/id/local-authority/30UE,Control Accounts,Control,Policy & Governance,General Balances,100,Balance Sheet,Balance,Jul-17,14/07/2017,122721,"1,855.85",Revenue,Unify Credit Union Ltd,55509
Chorley Borough Council,http://statistics.data.gov.uk/id/local-authority/30UE,Development Control,1091,Customer & Digital,Professional Fees,40063,Services,5027,Fees for Professional Planning Advice May 2017 to 31 March 2018,07/07/2017,122149,"3,712.50",Revenue,Urban Vision Partnership Ltd,21181
Chorley Borough Council,http://statistics.data.gov.uk/id/local-authority/30UE,Development Control,1091,Customer & Digital,Professional Fees,40063,Services,5027,Fees for Professional Planning Advice May 2017 to 31 March 2018,28/07/2017,122783,"5,491.90",Revenue,Urban Vision Partnership Ltd,21181
Chorley Borough Council,http://statistics.data.gov.uk/id/local-authority/30UE,Corporate Management,1008,Customer & Digital,Unitary Payment(S),50009,Private Contractors,5042,Provision of household waste and recycling collection service including subscription garden waste collections and other ancillary services a,21/07/2017,122742,"274,640.75",Revenue,Veolia ES (UK) Ltd,20748
Chorley Borough Council,http://statistics.data.gov.uk/id/local-authority/30UE,Central Support Services,1009,Customer & Digital,Telephones - Rentals,40083,Communication and Computing,5028,Jun-17,05/07/2017,122338,"2,145.00",Revenue,Virgin Media Payments Ltd,17632
Chorley Borough Council,http://statistics.data.gov.uk/id/local-authority/30UE,Central Support Services,1009,Customer & Digital,Internet Charges,40104,Communication and Computing,5028,Jul-17,21/07/2017,122861,"1,439.04",Revenue,Virgin Media Payments Ltd,17632
Chorley Borough Council,http://statistics.data.gov.uk/id/local-authority/30UE,Central Support Services,1009,Customer & Digital,Computer Equipment - Security,40106,Communication and Computing,5028,2nd quarter charges,21/07/2017,122502,"2,929.35",Revenue,Vodafone Ltd,60180
Chorley Borough Council,http://statistics.data.gov.uk/id/local-authority/30UE,Unapportionable Central OHeads,1009,Business Development & Growth,Water - Metered Supplies,20022,Water Services,5009,stump lane,07/07/2017,122327,"2,836.93",Revenue,Water-plus,17926
Chorley Borough Council,http://statistics.data.gov.uk/id/local-authority/30UE,Democratic Represent and  Mgnt,1007,Business Development & Growth,Water - Metered Supplies,20022,Water Services,5009,asltey park,07/07/2017,122330,693.28,Revenue,Water-plus,17926
Chorley Borough Council,http://statistics.data.gov.uk/id/local-authority/30UE,Economic Development,1096,Business Development & Growth,Water - Metered Supplies,20022,Water Services,5009,market stall 1,12/07/2017,122503,439.78,Revenue,Water-plus,17926
Chorley Borough Council,http://statistics.data.gov.uk/id/local-authority/30UE,Democratic Represent and  Mgnt,1007,Business Development & Growth,Water - Metered Supplies,20022,Water Services,5009,astley coach house,19/07/2017,122719,"1,277.98",Revenue,Water-plus,17926
Chorley Borough Council,http://statistics.data.gov.uk/id/local-authority/30UE,Unapportionable Central OHeads,1009,Policy & Governance,HR Recruitment - Advertising,15300,Indirect Employee Expenses,5002,Advertising for Corporate Support Assistant,05/07/2017,122286,299.00,Revenue,Websense Recruit Ltd T/A Fill My Vacancy,76200
Chorley Borough Council,http://statistics.data.gov.uk/id/local-authority/30UE,Democratic Represent and  Mgnt,1007,Policy & Governance,Grants To Other Organisations,40127,Grants and Subscriptions,5031,grant,07/07/2017,122368,250.00,Revenue,NAME REDACTED,76802
Chorley Borough Council,http://statistics.data.gov.uk/id/local-authority/30UE,Capital,Capital,Business Development & Growth,Other Capital Related Fees,3024,Capital Expenditure,Capital,"Balance of professional fees from original Westlakes fee agreement 2,250 Additional Site Visits 2,500 (whole project)Additional Design ",19/07/2017,122772,"2,400.00",Capital,Westlakes Engineering Ltd,74337
Chorley Borough Council,http://statistics.data.gov.uk/id/local-authority/30UE,Capital,Capital,Business Development & Growth,Other Capital Related Fees,3024,Capital Expenditure,Capital,"Balance of professional fees from original Westlakes fee agreement 2,250  Additional Site Visits 2,500 (whole project) Additional Design",19/07/2017,122787,"1,000.00",Capital,Westlakes Engineering Ltd,74337
Chorley Borough Council,http://statistics.data.gov.uk/id/local-authority/30UE,Democratic Represent and  Mgnt,1007,Policy & Governance,Grants To Other Organisations,40127,Grants and Subscriptions,5031,grant,28/07/2017,122917,250.00,Revenue,Whittle and Clayton Cricket Club,57315
Chorley Borough Council,http://statistics.data.gov.uk/id/local-authority/30UE,Capital,Capital,Business Development & Growth,Equipment,3014,Capital Expenditure,Capital,supply and deliver to Bengal St Depot Chorley Toddler Comet roundabout ref 6020-088 (1495) Galaxy spring mobile re 6060-094 (395),07/07/2017,121928,"2,023.00",Capital,Wicksteed Leisure Ltd,18007
Chorley Borough Council,http://statistics.data.gov.uk/id/local-authority/30UE,Capital,Capital,Business Development & Growth,Surveyors Fees,3021,Capital Expenditure,Capital,NAME REDACTED to carry out a Phase 1 habitat survey of Yarrow Meadows project area.  Produce associated maps and report including,19/07/2017,122731,600.00,Capital,Wildlife Trust for Lancs Manchester & N Merseyside,20377
Chorley Borough Council,http://statistics.data.gov.uk/id/local-authority/30UE,Service Management & Support,1009,Customer & Digital,Tools & Equipment - Purchase,40003,"Equipment, Furniture & Materia",5023,Communication charges for 51 vehicles for 1st April 2017 to 31st March 2018.,05/07/2017,122062,"3,029.40",Revenue,YouTrack Ltd,53109
